{"text_format":"3","workbook":"xlsx","n_sheets":2,"sheets":["Programma del corso","Elenco corsi"],"not_rendered":{"defined_names":17},"read":"whole","date_system":"1900"}

{"sheet":"Programma del corso","index":0,"n_rows":56,"n_cols":9,"rows_kept":56,"merged":[[0,1,1,5],[0,8,1,8]]}
[null,"PROGRAMMA DEL CORSO",{"$nulls":4},"INIZIO PIANIFICAZIONE","INTERVALLO DI TEMPO","Elenco corsi"]
[{"$nulls":6},"08:00:00","15 MIN"]
[null,"ORA","DOMENICA","LUNEDÌ","MARTEDÌ","MERCOLEDÌ","GIOVEDÌ","VENERDÌ","SABATO"]
[null,{"$f":"InizioPianificazione","v":"08:00:00"},{"$f":"IFERROR(INDEX(ElencoCorsi[],MATCH(SUMPRODUCT((ElencoCorsi[GIORNO]=ProgrammaDelCorso[[#Headers],[DOMENICA]])*(ROUNDDOWN($B4,10)>=ROUNDDOWN(ElencoCorsi[ORA INIZIO],10))*($B4<=ElencoCorsi[ORA FINE]),ElencoCorsi[UNIVOCO]),ElencoCorsi[UNIVOCO],0),2),0)","v":0},{"$f":"IFERROR(INDEX(ElencoCorsi[],MATCH(SUMPRODUCT((ElencoCorsi[GIORNO]=ProgrammaDelCorso[[#Headers],[LUNEDÌ]])*(ROUNDDOWN($B4,10)>=ROUNDDOWN(ElencoCorsi[ORA INIZIO],10))*($B4<=ElencoCorsi[ORA FINE]),ElencoCorsi[UNIVOCO]),ElencoCorsi[UNIVOCO],0),2),0)","v":0},{"$f":"IFERROR(INDEX(ElencoCorsi[],MATCH(SUMPRODUCT((ElencoCorsi[GIORNO]=ProgrammaDelCorso[[#Headers],[MARTEDÌ]])*(ROUNDDOWN($B4,10)>=ROUNDDOWN(ElencoCorsi[ORA INIZIO],10))*($B4<=ElencoCorsi[ORA FINE]),ElencoCorsi[UNIVOCO]),ElencoCorsi[UNIVOCO],0),2),0)","v":0},{"$f":"IFERROR(INDEX(ElencoCorsi[],MATCH(SUMPRODUCT((ElencoCorsi[GIORNO]=ProgrammaDelCorso[[#Headers],[MERCOLEDÌ]])*(ROUNDDOWN($B4,10)>=ROUNDDOWN(ElencoCorsi[ORA INIZIO],10))*($B4<=ElencoCorsi[ORA FINE]),ElencoCorsi[UNIVOCO]),ElencoCorsi[UNIVOCO],0),2),0)","v":0},{"$f":"IFERROR(INDEX(ElencoCorsi[],MATCH(SUMPRODUCT((ElencoCorsi[GIORNO]=ProgrammaDelCorso[[#Headers],[GIOVEDÌ]])*(ROUNDDOWN($B4,10)>=ROUNDDOWN(ElencoCorsi[ORA INIZIO],10))*($B4<=ElencoCorsi[ORA FINE]),ElencoCorsi[UNIVOCO]),ElencoCorsi[UNIVOCO],0),2),0)","v":0},{"$f":"IFERROR(INDEX(ElencoCorsi[],MATCH(SUMPRODUCT((ElencoCorsi[GIORNO]=ProgrammaDelCorso[[#Headers],[VENERDÌ]])*(ROUNDDOWN($B4,10)>=ROUNDDOWN(ElencoCorsi[ORA INIZIO],10))*($B4<=ElencoCorsi[ORA FINE]),ElencoCorsi[UNIVOCO]),ElencoCorsi[UNIVOCO],0),2),0)","v":0},{"$f":"IFERROR(INDEX(ElencoCorsi[],MATCH(SUMPRODUCT((ElencoCorsi[GIORNO]=ProgrammaDelCorso[[#Headers],[SABATO]])*(ROUNDDOWN($B4,10)>=ROUNDDOWN(ElencoCorsi[ORA INIZIO],10))*($B4<=ElencoCorsi[ORA FINE]),ElencoCorsi[UNIVOCO]),ElencoCorsi[UNIVOCO],0),2),0)","v":0}]
[null,{"$f":"B4+Incremento","v":"08:15:00"},{"$f":"IFERROR(INDEX(ElencoCorsi[],MATCH(SUMPRODUCT((ElencoCorsi[GIORNO]=ProgrammaDelCorso[[#Headers],[DOMENICA]])*(ROUNDDOWN($B5,10)>=ROUNDDOWN(ElencoCorsi[ORA INIZIO],10))*($B5<=ElencoCorsi[ORA FINE]),ElencoCorsi[UNIVOCO]),ElencoCorsi[UNIVOCO],0),2),0)","v":0},{"$f":"IFERROR(INDEX(ElencoCorsi[],MATCH(SUMPRODUCT((ElencoCorsi[GIORNO]=ProgrammaDelCorso[[#Headers],[LUNEDÌ]])*(ROUNDDOWN($B5,10)>=ROUNDDOWN(ElencoCorsi[ORA INIZIO],10))*($B5<=ElencoCorsi[ORA FINE]),ElencoCorsi[UNIVOCO]),ElencoCorsi[UNIVOCO],0),2),0)","v":"MAT-113"},{"$f":"IFERROR(INDEX(ElencoCorsi[],MATCH(SUMPRODUCT((ElencoCorsi[GIORNO]=ProgrammaDelCorso[[#Headers],[MARTEDÌ]])*(ROUNDDOWN($B5,10)>=ROUNDDOWN(ElencoCorsi[ORA INIZIO],10))*($B5<=ElencoCorsi[ORA FINE]),ElencoCorsi[UNIVOCO]),ElencoCorsi[UNIVOCO],0),2),0)","v":0},{"$f":"IFERROR(INDEX(ElencoCorsi[],MATCH(SUMPRODUCT((ElencoCorsi[GIORNO]=ProgrammaDelCorso[[#Headers],[MERCOLEDÌ]])*(ROUNDDOWN($B5,10)>=ROUNDDOWN(ElencoCorsi[ORA INIZIO],10))*($B5<=ElencoCorsi[ORA FINE]),ElencoCorsi[UNIVOCO]),ElencoCorsi[UNIVOCO],0),2),0)","v":"MAT-113"},{"$f":"IFERROR(INDEX(ElencoCorsi[],MATCH(SUMPRODUCT((ElencoCorsi[GIORNO]=ProgrammaDelCorso[[#Headers],[GIOVEDÌ]])*(ROUNDDOWN($B5,10)>=ROUNDDOWN(ElencoCorsi[ORA INIZIO],10))*($B5<=ElencoCorsi[ORA FINE]),ElencoCorsi[UNIVOCO]),ElencoCorsi[UNIVOCO],0),2),0)","v":0},{"$f":"IFERROR(INDEX(ElencoCorsi[],MATCH(SUMPRODUCT((ElencoCorsi[GIORNO]=ProgrammaDelCorso[[#Headers],[VENERDÌ]])*(ROUNDDOWN($B5,10)>=ROUNDDOWN(ElencoCorsi[ORA INIZIO],10))*($B5<=ElencoCorsi[ORA FINE]),ElencoCorsi[UNIVOCO]),ElencoCorsi[UNIVOCO],0),2),0)","v":"MAT-113"},{"$f":"IFERROR(INDEX(ElencoCorsi[],MATCH(SUMPRODUCT((ElencoCorsi[GIORNO]=ProgrammaDelCorso[[#Headers],[SABATO]])*(ROUNDDOWN($B5,10)>=ROUNDDOWN(ElencoCorsi[ORA INIZIO],10))*($B5<=ElencoCorsi[ORA FINE]),ElencoCorsi[UNIVOCO]),ElencoCorsi[UNIVOCO],0),2),0)","v":0}]
[null,"08:30:00",{"$f":"IFERROR(INDEX(ElencoCorsi[],MATCH(SUMPRODUCT((ElencoCorsi[GIORNO]=ProgrammaDelCorso[[#Headers],[DOMENICA]])*(ROUNDDOWN($B6,10)>=ROUNDDOWN(ElencoCorsi[ORA INIZIO],10))*($B6<=ElencoCorsi[ORA FINE]),ElencoCorsi[UNIVOCO]),ElencoCorsi[UNIVOCO],0),2),0)","v":0},{"$f":"IFERROR(INDEX(ElencoCorsi[],MATCH(SUMPRODUCT((ElencoCorsi[GIORNO]=ProgrammaDelCorso[[#Headers],[LUNEDÌ]])*(ROUNDDOWN($B6,10)>=ROUNDDOWN(ElencoCorsi[ORA INIZIO],10))*($B6<=ElencoCorsi[ORA FINE]),ElencoCorsi[UNIVOCO]),ElencoCorsi[UNIVOCO],0),2),0)","v":"MAT-113"},{"$f":"IFERROR(INDEX(ElencoCorsi[],MATCH(SUMPRODUCT((ElencoCorsi[GIORNO]=ProgrammaDelCorso[[#Headers],[MARTEDÌ]])*(ROUNDDOWN($B6,10)>=ROUNDDOWN(ElencoCorsi[ORA INIZIO],10))*($B6<=ElencoCorsi[ORA FINE]),ElencoCorsi[UNIVOCO]),ElencoCorsi[UNIVOCO],0),2),0)","v":0},{"$f":"IFERROR(INDEX(ElencoCorsi[],MATCH(SUMPRODUCT((ElencoCorsi[GIORNO]=ProgrammaDelCorso[[#Headers],[MERCOLEDÌ]])*(ROUNDDOWN($B6,10)>=ROUNDDOWN(ElencoCorsi[ORA INIZIO],10))*($B6<=ElencoCorsi[ORA FINE]),ElencoCorsi[UNIVOCO]),ElencoCorsi[UNIVOCO],0),2),0)","v":"MAT-113"},{"$f":"IFERROR(INDEX(ElencoCorsi[],MATCH(SUMPRODUCT((ElencoCorsi[GIORNO]=ProgrammaDelCorso[[#Headers],[GIOVEDÌ]])*(ROUNDDOWN($B6,10)>=ROUNDDOWN(ElencoCorsi[ORA INIZIO],10))*($B6<=ElencoCorsi[ORA FINE]),ElencoCorsi[UNIVOCO]),ElencoCorsi[UNIVOCO],0),2),0)","v":0},{"$f":"IFERROR(INDEX(ElencoCorsi[],MATCH(SUMPRODUCT((ElencoCorsi[GIORNO]=ProgrammaDelCorso[[#Headers],[VENERDÌ]])*(ROUNDDOWN($B6,10)>=ROUNDDOWN(ElencoCorsi[ORA INIZIO],10))*($B6<=ElencoCorsi[ORA FINE]),ElencoCorsi[UNIVOCO]),ElencoCorsi[UNIVOCO],0),2),0)","v":"MAT-113"},{"$f":"IFERROR(INDEX(ElencoCorsi[],MATCH(SUMPRODUCT((ElencoCorsi[GIORNO]=ProgrammaDelCorso[[#Headers],[SABATO]])*(ROUNDDOWN($B6,10)>=ROUNDDOWN(ElencoCorsi[ORA INIZIO],10))*($B6<=ElencoCorsi[ORA FINE]),ElencoCorsi[UNIVOCO]),ElencoCorsi[UNIVOCO],0),2),0)","v":0}]
[null,"08:45:00",{"$f":"IFERROR(INDEX(ElencoCorsi[],MATCH(SUMPRODUCT((ElencoCorsi[GIORNO]=ProgrammaDelCorso[[#Headers],[DOMENICA]])*(ROUNDDOWN($B7,10)>=ROUNDDOWN(ElencoCorsi[ORA INIZIO],10))*($B7<=ElencoCorsi[ORA FINE]),ElencoCorsi[UNIVOCO]),ElencoCorsi[UNIVOCO],0),2),0)","v":0},{"$f":"IFERROR(INDEX(ElencoCorsi[],MATCH(SUMPRODUCT((ElencoCorsi[GIORNO]=ProgrammaDelCorso[[#Headers],[LUNEDÌ]])*(ROUNDDOWN($B7,10)>=ROUNDDOWN(ElencoCorsi[ORA INIZIO],10))*($B7<=ElencoCorsi[ORA FINE]),ElencoCorsi[UNIVOCO]),ElencoCorsi[UNIVOCO],0),2),0)","v":"MAT-113"},{"$f":"IFERROR(INDEX(ElencoCorsi[],MATCH(SUMPRODUCT((ElencoCorsi[GIORNO]=ProgrammaDelCorso[[#Headers],[MARTEDÌ]])*(ROUNDDOWN($B7,10)>=ROUNDDOWN(ElencoCorsi[ORA INIZIO],10))*($B7<=ElencoCorsi[ORA FINE]),ElencoCorsi[UNIVOCO]),ElencoCorsi[UNIVOCO],0),2),0)","v":0},{"$f":"IFERROR(INDEX(ElencoCorsi[],MATCH(SUMPRODUCT((ElencoCorsi[GIORNO]=ProgrammaDelCorso[[#Headers],[MERCOLEDÌ]])*(ROUNDDOWN($B7,10)>=ROUNDDOWN(ElencoCorsi[ORA INIZIO],10))*($B7<=ElencoCorsi[ORA FINE]),ElencoCorsi[UNIVOCO]),ElencoCorsi[UNIVOCO],0),2),0)","v":"MAT-113"},{"$f":"IFERROR(INDEX(ElencoCorsi[],MATCH(SUMPRODUCT((ElencoCorsi[GIORNO]=ProgrammaDelCorso[[#Headers],[GIOVEDÌ]])*(ROUNDDOWN($B7,10)>=ROUNDDOWN(ElencoCorsi[ORA INIZIO],10))*($B7<=ElencoCorsi[ORA FINE]),ElencoCorsi[UNIVOCO]),ElencoCorsi[UNIVOCO],0),2),0)","v":0},{"$f":"IFERROR(INDEX(ElencoCorsi[],MATCH(SUMPRODUCT((ElencoCorsi[GIORNO]=ProgrammaDelCorso[[#Headers],[VENERDÌ]])*(ROUNDDOWN($B7,10)>=ROUNDDOWN(ElencoCorsi[ORA INIZIO],10))*($B7<=ElencoCorsi[ORA FINE]),ElencoCorsi[UNIVOCO]),ElencoCorsi[UNIVOCO],0),2),0)","v":"MAT-113"},{"$f":"IFERROR(INDEX(ElencoCorsi[],MATCH(SUMPRODUCT((ElencoCorsi[GIORNO]=ProgrammaDelCorso[[#Headers],[SABATO]])*(ROUNDDOWN($B7,10)>=ROUNDDOWN(ElencoCorsi[ORA INIZIO],10))*($B7<=ElencoCorsi[ORA FINE]),ElencoCorsi[UNIVOCO]),ElencoCorsi[UNIVOCO],0),2),0)","v":0}]
[null,{"$f":"B7+Incremento","v":"09:00:00"},{"$f":"IFERROR(INDEX(ElencoCorsi[],MATCH(SUMPRODUCT((ElencoCorsi[GIORNO]=ProgrammaDelCorso[[#Headers],[DOMENICA]])*(ROUNDDOWN($B8,10)>=ROUNDDOWN(ElencoCorsi[ORA INIZIO],10))*($B8<=ElencoCorsi[ORA FINE]),ElencoCorsi[UNIVOCO]),ElencoCorsi[UNIVOCO],0),2),0)","v":0},{"$f":"IFERROR(INDEX(ElencoCorsi[],MATCH(SUMPRODUCT((ElencoCorsi[GIORNO]=ProgrammaDelCorso[[#Headers],[LUNEDÌ]])*(ROUNDDOWN($B8,10)>=ROUNDDOWN(ElencoCorsi[ORA INIZIO],10))*($B8<=ElencoCorsi[ORA FINE]),ElencoCorsi[UNIVOCO]),ElencoCorsi[UNIVOCO],0),2),0)","v":"MAT-113"},{"$f":"IFERROR(INDEX(ElencoCorsi[],MATCH(SUMPRODUCT((ElencoCorsi[GIORNO]=ProgrammaDelCorso[[#Headers],[MARTEDÌ]])*(ROUNDDOWN($B8,10)>=ROUNDDOWN(ElencoCorsi[ORA INIZIO],10))*($B8<=ElencoCorsi[ORA FINE]),ElencoCorsi[UNIVOCO]),ElencoCorsi[UNIVOCO],0),2),0)","v":0},{"$f":"IFERROR(INDEX(ElencoCorsi[],MATCH(SUMPRODUCT((ElencoCorsi[GIORNO]=ProgrammaDelCorso[[#Headers],[MERCOLEDÌ]])*(ROUNDDOWN($B8,10)>=ROUNDDOWN(ElencoCorsi[ORA INIZIO],10))*($B8<=ElencoCorsi[ORA FINE]),ElencoCorsi[UNIVOCO]),ElencoCorsi[UNIVOCO],0),2),0)","v":"MAT-113"},{"$f":"IFERROR(INDEX(ElencoCorsi[],MATCH(SUMPRODUCT((ElencoCorsi[GIORNO]=ProgrammaDelCorso[[#Headers],[GIOVEDÌ]])*(ROUNDDOWN($B8,10)>=ROUNDDOWN(ElencoCorsi[ORA INIZIO],10))*($B8<=ElencoCorsi[ORA FINE]),ElencoCorsi[UNIVOCO]),ElencoCorsi[UNIVOCO],0),2),0)","v":0},{"$f":"IFERROR(INDEX(ElencoCorsi[],MATCH(SUMPRODUCT((ElencoCorsi[GIORNO]=ProgrammaDelCorso[[#Headers],[VENERDÌ]])*(ROUNDDOWN($B8,10)>=ROUNDDOWN(ElencoCorsi[ORA INIZIO],10))*($B8<=ElencoCorsi[ORA FINE]),ElencoCorsi[UNIVOCO]),ElencoCorsi[UNIVOCO],0),2),0)","v":"MAT-113"},{"$f":"IFERROR(INDEX(ElencoCorsi[],MATCH(SUMPRODUCT((ElencoCorsi[GIORNO]=ProgrammaDelCorso[[#Headers],[SABATO]])*(ROUNDDOWN($B8,10)>=ROUNDDOWN(ElencoCorsi[ORA INIZIO],10))*($B8<=ElencoCorsi[ORA FINE]),ElencoCorsi[UNIVOCO]),ElencoCorsi[UNIVOCO],0),2),0)","v":0}]
[null,"09:15:00",{"$f":"IFERROR(INDEX(ElencoCorsi[],MATCH(SUMPRODUCT((ElencoCorsi[GIORNO]=ProgrammaDelCorso[[#Headers],[DOMENICA]])*(ROUNDDOWN($B9,10)>=ROUNDDOWN(ElencoCorsi[ORA INIZIO],10))*($B9<=ElencoCorsi[ORA FINE]),ElencoCorsi[UNIVOCO]),ElencoCorsi[UNIVOCO],0),2),0)","v":0},{"$f":"IFERROR(INDEX(ElencoCorsi[],MATCH(SUMPRODUCT((ElencoCorsi[GIORNO]=ProgrammaDelCorso[[#Headers],[LUNEDÌ]])*(ROUNDDOWN($B9,10)>=ROUNDDOWN(ElencoCorsi[ORA INIZIO],10))*($B9<=ElencoCorsi[ORA FINE]),ElencoCorsi[UNIVOCO]),ElencoCorsi[UNIVOCO],0),2),0)","v":"MAT-113"},{"$f":"IFERROR(INDEX(ElencoCorsi[],MATCH(SUMPRODUCT((ElencoCorsi[GIORNO]=ProgrammaDelCorso[[#Headers],[MARTEDÌ]])*(ROUNDDOWN($B9,10)>=ROUNDDOWN(ElencoCorsi[ORA INIZIO],10))*($B9<=ElencoCorsi[ORA FINE]),ElencoCorsi[UNIVOCO]),ElencoCorsi[UNIVOCO],0),2),0)","v":0},{"$f":"IFERROR(INDEX(ElencoCorsi[],MATCH(SUMPRODUCT((ElencoCorsi[GIORNO]=ProgrammaDelCorso[[#Headers],[MERCOLEDÌ]])*(ROUNDDOWN($B9,10)>=ROUNDDOWN(ElencoCorsi[ORA INIZIO],10))*($B9<=ElencoCorsi[ORA FINE]),ElencoCorsi[UNIVOCO]),ElencoCorsi[UNIVOCO],0),2),0)","v":"MAT-113"},{"$f":"IFERROR(INDEX(ElencoCorsi[],MATCH(SUMPRODUCT((ElencoCorsi[GIORNO]=ProgrammaDelCorso[[#Headers],[GIOVEDÌ]])*(ROUNDDOWN($B9,10)>=ROUNDDOWN(ElencoCorsi[ORA INIZIO],10))*($B9<=ElencoCorsi[ORA FINE]),ElencoCorsi[UNIVOCO]),ElencoCorsi[UNIVOCO],0),2),0)","v":0},{"$f":"IFERROR(INDEX(ElencoCorsi[],MATCH(SUMPRODUCT((ElencoCorsi[GIORNO]=ProgrammaDelCorso[[#Headers],[VENERDÌ]])*(ROUNDDOWN($B9,10)>=ROUNDDOWN(ElencoCorsi[ORA INIZIO],10))*($B9<=ElencoCorsi[ORA FINE]),ElencoCorsi[UNIVOCO]),ElencoCorsi[UNIVOCO],0),2),0)","v":"MAT-113"},{"$f":"IFERROR(INDEX(ElencoCorsi[],MATCH(SUMPRODUCT((ElencoCorsi[GIORNO]=ProgrammaDelCorso[[#Headers],[SABATO]])*(ROUNDDOWN($B9,10)>=ROUNDDOWN(ElencoCorsi[ORA INIZIO],10))*($B9<=ElencoCorsi[ORA FINE]),ElencoCorsi[UNIVOCO]),ElencoCorsi[UNIVOCO],0),2),0)","v":0}]
[null,"09:30:00",{"$f":"IFERROR(INDEX(ElencoCorsi[],MATCH(SUMPRODUCT((ElencoCorsi[GIORNO]=ProgrammaDelCorso[[#Headers],[DOMENICA]])*(ROUNDDOWN($B10,10)>=ROUNDDOWN(ElencoCorsi[ORA INIZIO],10))*($B10<=ElencoCorsi[ORA FINE]),ElencoCorsi[UNIVOCO]),ElencoCorsi[UNIVOCO],0),2),0)","v":0},{"$f":"IFERROR(INDEX(ElencoCorsi[],MATCH(SUMPRODUCT((ElencoCorsi[GIORNO]=ProgrammaDelCorso[[#Headers],[LUNEDÌ]])*(ROUNDDOWN($B10,10)>=ROUNDDOWN(ElencoCorsi[ORA INIZIO],10))*($B10<=ElencoCorsi[ORA FINE]),ElencoCorsi[UNIVOCO]),ElencoCorsi[UNIVOCO],0),2),0)","v":0},{"$f":"IFERROR(INDEX(ElencoCorsi[],MATCH(SUMPRODUCT((ElencoCorsi[GIORNO]=ProgrammaDelCorso[[#Headers],[MARTEDÌ]])*(ROUNDDOWN($B10,10)>=ROUNDDOWN(ElencoCorsi[ORA INIZIO],10))*($B10<=ElencoCorsi[ORA FINE]),ElencoCorsi[UNIVOCO]),ElencoCorsi[UNIVOCO],0),2),0)","v":0},{"$f":"IFERROR(INDEX(ElencoCorsi[],MATCH(SUMPRODUCT((ElencoCorsi[GIORNO]=ProgrammaDelCorso[[#Headers],[MERCOLEDÌ]])*(ROUNDDOWN($B10,10)>=ROUNDDOWN(ElencoCorsi[ORA INIZIO],10))*($B10<=ElencoCorsi[ORA FINE]),ElencoCorsi[UNIVOCO]),ElencoCorsi[UNIVOCO],0),2),0)","v":0},{"$f":"IFERROR(INDEX(ElencoCorsi[],MATCH(SUMPRODUCT((ElencoCorsi[GIORNO]=ProgrammaDelCorso[[#Headers],[GIOVEDÌ]])*(ROUNDDOWN($B10,10)>=ROUNDDOWN(ElencoCorsi[ORA INIZIO],10))*($B10<=ElencoCorsi[ORA FINE]),ElencoCorsi[UNIVOCO]),ElencoCorsi[UNIVOCO],0),2),0)","v":0},{"$f":"IFERROR(INDEX(ElencoCorsi[],MATCH(SUMPRODUCT((ElencoCorsi[GIORNO]=ProgrammaDelCorso[[#Headers],[VENERDÌ]])*(ROUNDDOWN($B10,10)>=ROUNDDOWN(ElencoCorsi[ORA INIZIO],10))*($B10<=ElencoCorsi[ORA FINE]),ElencoCorsi[UNIVOCO]),ElencoCorsi[UNIVOCO],0),2),0)","v":0},{"$f":"IFERROR(INDEX(ElencoCorsi[],MATCH(SUMPRODUCT((ElencoCorsi[GIORNO]=ProgrammaDelCorso[[#Headers],[SABATO]])*(ROUNDDOWN($B10,10)>=ROUNDDOWN(ElencoCorsi[ORA INIZIO],10))*($B10<=ElencoCorsi[ORA FINE]),ElencoCorsi[UNIVOCO]),ElencoCorsi[UNIVOCO],0),2),0)","v":0}]
[null,"09:45:00",{"$f":"IFERROR(INDEX(ElencoCorsi[],MATCH(SUMPRODUCT((ElencoCorsi[GIORNO]=ProgrammaDelCorso[[#Headers],[DOMENICA]])*(ROUNDDOWN($B11,10)>=ROUNDDOWN(ElencoCorsi[ORA INIZIO],10))*($B11<=ElencoCorsi[ORA FINE]),ElencoCorsi[UNIVOCO]),ElencoCorsi[UNIVOCO],0),2),0)","v":0},{"$f":"IFERROR(INDEX(ElencoCorsi[],MATCH(SUMPRODUCT((ElencoCorsi[GIORNO]=ProgrammaDelCorso[[#Headers],[LUNEDÌ]])*(ROUNDDOWN($B11,10)>=ROUNDDOWN(ElencoCorsi[ORA INIZIO],10))*($B11<=ElencoCorsi[ORA FINE]),ElencoCorsi[UNIVOCO]),ElencoCorsi[UNIVOCO],0),2),0)","v":0},{"$f":"IFERROR(INDEX(ElencoCorsi[],MATCH(SUMPRODUCT((ElencoCorsi[GIORNO]=ProgrammaDelCorso[[#Headers],[MARTEDÌ]])*(ROUNDDOWN($B11,10)>=ROUNDDOWN(ElencoCorsi[ORA INIZIO],10))*($B11<=ElencoCorsi[ORA FINE]),ElencoCorsi[UNIVOCO]),ElencoCorsi[UNIVOCO],0),2),0)","v":0},{"$f":"IFERROR(INDEX(ElencoCorsi[],MATCH(SUMPRODUCT((ElencoCorsi[GIORNO]=ProgrammaDelCorso[[#Headers],[MERCOLEDÌ]])*(ROUNDDOWN($B11,10)>=ROUNDDOWN(ElencoCorsi[ORA INIZIO],10))*($B11<=ElencoCorsi[ORA FINE]),ElencoCorsi[UNIVOCO]),ElencoCorsi[UNIVOCO],0),2),0)","v":0},{"$f":"IFERROR(INDEX(ElencoCorsi[],MATCH(SUMPRODUCT((ElencoCorsi[GIORNO]=ProgrammaDelCorso[[#Headers],[GIOVEDÌ]])*(ROUNDDOWN($B11,10)>=ROUNDDOWN(ElencoCorsi[ORA INIZIO],10))*($B11<=ElencoCorsi[ORA FINE]),ElencoCorsi[UNIVOCO]),ElencoCorsi[UNIVOCO],0),2),0)","v":0},{"$f":"IFERROR(INDEX(ElencoCorsi[],MATCH(SUMPRODUCT((ElencoCorsi[GIORNO]=ProgrammaDelCorso[[#Headers],[VENERDÌ]])*(ROUNDDOWN($B11,10)>=ROUNDDOWN(ElencoCorsi[ORA INIZIO],10))*($B11<=ElencoCorsi[ORA FINE]),ElencoCorsi[UNIVOCO]),ElencoCorsi[UNIVOCO],0),2),0)","v":0},{"$f":"IFERROR(INDEX(ElencoCorsi[],MATCH(SUMPRODUCT((ElencoCorsi[GIORNO]=ProgrammaDelCorso[[#Headers],[SABATO]])*(ROUNDDOWN($B11,10)>=ROUNDDOWN(ElencoCorsi[ORA INIZIO],10))*($B11<=ElencoCorsi[ORA FINE]),ElencoCorsi[UNIVOCO]),ElencoCorsi[UNIVOCO],0),2),0)","v":0}]
[null,"10:00:00",{"$f":"IFERROR(INDEX(ElencoCorsi[],MATCH(SUMPRODUCT((ElencoCorsi[GIORNO]=ProgrammaDelCorso[[#Headers],[DOMENICA]])*(ROUNDDOWN($B12,10)>=ROUNDDOWN(ElencoCorsi[ORA INIZIO],10))*($B12<=ElencoCorsi[ORA FINE]),ElencoCorsi[UNIVOCO]),ElencoCorsi[UNIVOCO],0),2),0)","v":0},{"$f":"IFERROR(INDEX(ElencoCorsi[],MATCH(SUMPRODUCT((ElencoCorsi[GIORNO]=ProgrammaDelCorso[[#Headers],[LUNEDÌ]])*(ROUNDDOWN($B12,10)>=ROUNDDOWN(ElencoCorsi[ORA INIZIO],10))*($B12<=ElencoCorsi[ORA FINE]),ElencoCorsi[UNIVOCO]),ElencoCorsi[UNIVOCO],0),2),0)","v":0},{"$f":"IFERROR(INDEX(ElencoCorsi[],MATCH(SUMPRODUCT((ElencoCorsi[GIORNO]=ProgrammaDelCorso[[#Headers],[MARTEDÌ]])*(ROUNDDOWN($B12,10)>=ROUNDDOWN(ElencoCorsi[ORA INIZIO],10))*($B12<=ElencoCorsi[ORA FINE]),ElencoCorsi[UNIVOCO]),ElencoCorsi[UNIVOCO],0),2),0)","v":0},{"$f":"IFERROR(INDEX(ElencoCorsi[],MATCH(SUMPRODUCT((ElencoCorsi[GIORNO]=ProgrammaDelCorso[[#Headers],[MERCOLEDÌ]])*(ROUNDDOWN($B12,10)>=ROUNDDOWN(ElencoCorsi[ORA INIZIO],10))*($B12<=ElencoCorsi[ORA FINE]),ElencoCorsi[UNIVOCO]),ElencoCorsi[UNIVOCO],0),2),0)","v":0},{"$f":"IFERROR(INDEX(ElencoCorsi[],MATCH(SUMPRODUCT((ElencoCorsi[GIORNO]=ProgrammaDelCorso[[#Headers],[GIOVEDÌ]])*(ROUNDDOWN($B12,10)>=ROUNDDOWN(ElencoCorsi[ORA INIZIO],10))*($B12<=ElencoCorsi[ORA FINE]),ElencoCorsi[UNIVOCO]),ElencoCorsi[UNIVOCO],0),2),0)","v":0},{"$f":"IFERROR(INDEX(ElencoCorsi[],MATCH(SUMPRODUCT((ElencoCorsi[GIORNO]=ProgrammaDelCorso[[#Headers],[VENERDÌ]])*(ROUNDDOWN($B12,10)>=ROUNDDOWN(ElencoCorsi[ORA INIZIO],10))*($B12<=ElencoCorsi[ORA FINE]),ElencoCorsi[UNIVOCO]),ElencoCorsi[UNIVOCO],0),2),0)","v":0},{"$f":"IFERROR(INDEX(ElencoCorsi[],MATCH(SUMPRODUCT((ElencoCorsi[GIORNO]=ProgrammaDelCorso[[#Headers],[SABATO]])*(ROUNDDOWN($B12,10)>=ROUNDDOWN(ElencoCorsi[ORA INIZIO],10))*($B12<=ElencoCorsi[ORA FINE]),ElencoCorsi[UNIVOCO]),ElencoCorsi[UNIVOCO],0),2),0)","v":0}]
[null,"10:15:00",{"$f":"IFERROR(INDEX(ElencoCorsi[],MATCH(SUMPRODUCT((ElencoCorsi[GIORNO]=ProgrammaDelCorso[[#Headers],[DOMENICA]])*(ROUNDDOWN($B13,10)>=ROUNDDOWN(ElencoCorsi[ORA INIZIO],10))*($B13<=ElencoCorsi[ORA FINE]),ElencoCorsi[UNIVOCO]),ElencoCorsi[UNIVOCO],0),2),0)","v":0},{"$f":"IFERROR(INDEX(ElencoCorsi[],MATCH(SUMPRODUCT((ElencoCorsi[GIORNO]=ProgrammaDelCorso[[#Headers],[LUNEDÌ]])*(ROUNDDOWN($B13,10)>=ROUNDDOWN(ElencoCorsi[ORA INIZIO],10))*($B13<=ElencoCorsi[ORA FINE]),ElencoCorsi[UNIVOCO]),ElencoCorsi[UNIVOCO],0),2),0)","v":0},{"$f":"IFERROR(INDEX(ElencoCorsi[],MATCH(SUMPRODUCT((ElencoCorsi[GIORNO]=ProgrammaDelCorso[[#Headers],[MARTEDÌ]])*(ROUNDDOWN($B13,10)>=ROUNDDOWN(ElencoCorsi[ORA INIZIO],10))*($B13<=ElencoCorsi[ORA FINE]),ElencoCorsi[UNIVOCO]),ElencoCorsi[UNIVOCO],0),2),0)","v":0},{"$f":"IFERROR(INDEX(ElencoCorsi[],MATCH(SUMPRODUCT((ElencoCorsi[GIORNO]=ProgrammaDelCorso[[#Headers],[MERCOLEDÌ]])*(ROUNDDOWN($B13,10)>=ROUNDDOWN(ElencoCorsi[ORA INIZIO],10))*($B13<=ElencoCorsi[ORA FINE]),ElencoCorsi[UNIVOCO]),ElencoCorsi[UNIVOCO],0),2),0)","v":0},{"$f":"IFERROR(INDEX(ElencoCorsi[],MATCH(SUMPRODUCT((ElencoCorsi[GIORNO]=ProgrammaDelCorso[[#Headers],[GIOVEDÌ]])*(ROUNDDOWN($B13,10)>=ROUNDDOWN(ElencoCorsi[ORA INIZIO],10))*($B13<=ElencoCorsi[ORA FINE]),ElencoCorsi[UNIVOCO]),ElencoCorsi[UNIVOCO],0),2),0)","v":0},{"$f":"IFERROR(INDEX(ElencoCorsi[],MATCH(SUMPRODUCT((ElencoCorsi[GIORNO]=ProgrammaDelCorso[[#Headers],[VENERDÌ]])*(ROUNDDOWN($B13,10)>=ROUNDDOWN(ElencoCorsi[ORA INIZIO],10))*($B13<=ElencoCorsi[ORA FINE]),ElencoCorsi[UNIVOCO]),ElencoCorsi[UNIVOCO],0),2),0)","v":0},{"$f":"IFERROR(INDEX(ElencoCorsi[],MATCH(SUMPRODUCT((ElencoCorsi[GIORNO]=ProgrammaDelCorso[[#Headers],[SABATO]])*(ROUNDDOWN($B13,10)>=ROUNDDOWN(ElencoCorsi[ORA INIZIO],10))*($B13<=ElencoCorsi[ORA FINE]),ElencoCorsi[UNIVOCO]),ElencoCorsi[UNIVOCO],0),2),0)","v":0}]
[null,"10:30:00",{"$f":"IFERROR(INDEX(ElencoCorsi[],MATCH(SUMPRODUCT((ElencoCorsi[GIORNO]=ProgrammaDelCorso[[#Headers],[DOMENICA]])*(ROUNDDOWN($B14,10)>=ROUNDDOWN(ElencoCorsi[ORA INIZIO],10))*($B14<=ElencoCorsi[ORA FINE]),ElencoCorsi[UNIVOCO]),ElencoCorsi[UNIVOCO],0),2),0)","v":0},{"$f":"IFERROR(INDEX(ElencoCorsi[],MATCH(SUMPRODUCT((ElencoCorsi[GIORNO]=ProgrammaDelCorso[[#Headers],[LUNEDÌ]])*(ROUNDDOWN($B14,10)>=ROUNDDOWN(ElencoCorsi[ORA INIZIO],10))*($B14<=ElencoCorsi[ORA FINE]),ElencoCorsi[UNIVOCO]),ElencoCorsi[UNIVOCO],0),2),0)","v":0},{"$f":"IFERROR(INDEX(ElencoCorsi[],MATCH(SUMPRODUCT((ElencoCorsi[GIORNO]=ProgrammaDelCorso[[#Headers],[MARTEDÌ]])*(ROUNDDOWN($B14,10)>=ROUNDDOWN(ElencoCorsi[ORA INIZIO],10))*($B14<=ElencoCorsi[ORA FINE]),ElencoCorsi[UNIVOCO]),ElencoCorsi[UNIVOCO],0),2),0)","v":0},{"$f":"IFERROR(INDEX(ElencoCorsi[],MATCH(SUMPRODUCT((ElencoCorsi[GIORNO]=ProgrammaDelCorso[[#Headers],[MERCOLEDÌ]])*(ROUNDDOWN($B14,10)>=ROUNDDOWN(ElencoCorsi[ORA INIZIO],10))*($B14<=ElencoCorsi[ORA FINE]),ElencoCorsi[UNIVOCO]),ElencoCorsi[UNIVOCO],0),2),0)","v":0},{"$f":"IFERROR(INDEX(ElencoCorsi[],MATCH(SUMPRODUCT((ElencoCorsi[GIORNO]=ProgrammaDelCorso[[#Headers],[GIOVEDÌ]])*(ROUNDDOWN($B14,10)>=ROUNDDOWN(ElencoCorsi[ORA INIZIO],10))*($B14<=ElencoCorsi[ORA FINE]),ElencoCorsi[UNIVOCO]),ElencoCorsi[UNIVOCO],0),2),0)","v":0},{"$f":"IFERROR(INDEX(ElencoCorsi[],MATCH(SUMPRODUCT((ElencoCorsi[GIORNO]=ProgrammaDelCorso[[#Headers],[VENERDÌ]])*(ROUNDDOWN($B14,10)>=ROUNDDOWN(ElencoCorsi[ORA INIZIO],10))*($B14<=ElencoCorsi[ORA FINE]),ElencoCorsi[UNIVOCO]),ElencoCorsi[UNIVOCO],0),2),0)","v":0},{"$f":"IFERROR(INDEX(ElencoCorsi[],MATCH(SUMPRODUCT((ElencoCorsi[GIORNO]=ProgrammaDelCorso[[#Headers],[SABATO]])*(ROUNDDOWN($B14,10)>=ROUNDDOWN(ElencoCorsi[ORA INIZIO],10))*($B14<=ElencoCorsi[ORA FINE]),ElencoCorsi[UNIVOCO]),ElencoCorsi[UNIVOCO],0),2),0)","v":0}]
[null,"10:45:00",{"$f":"IFERROR(INDEX(ElencoCorsi[],MATCH(SUMPRODUCT((ElencoCorsi[GIORNO]=ProgrammaDelCorso[[#Headers],[DOMENICA]])*(ROUNDDOWN($B15,10)>=ROUNDDOWN(ElencoCorsi[ORA INIZIO],10))*($B15<=ElencoCorsi[ORA FINE]),ElencoCorsi[UNIVOCO]),ElencoCorsi[UNIVOCO],0),2),0)","v":0},{"$f":"IFERROR(INDEX(ElencoCorsi[],MATCH(SUMPRODUCT((ElencoCorsi[GIORNO]=ProgrammaDelCorso[[#Headers],[LUNEDÌ]])*(ROUNDDOWN($B15,10)>=ROUNDDOWN(ElencoCorsi[ORA INIZIO],10))*($B15<=ElencoCorsi[ORA FINE]),ElencoCorsi[UNIVOCO]),ElencoCorsi[UNIVOCO],0),2),0)","v":0},{"$f":"IFERROR(INDEX(ElencoCorsi[],MATCH(SUMPRODUCT((ElencoCorsi[GIORNO]=ProgrammaDelCorso[[#Headers],[MARTEDÌ]])*(ROUNDDOWN($B15,10)>=ROUNDDOWN(ElencoCorsi[ORA INIZIO],10))*($B15<=ElencoCorsi[ORA FINE]),ElencoCorsi[UNIVOCO]),ElencoCorsi[UNIVOCO],0),2),0)","v":0},{"$f":"IFERROR(INDEX(ElencoCorsi[],MATCH(SUMPRODUCT((ElencoCorsi[GIORNO]=ProgrammaDelCorso[[#Headers],[MERCOLEDÌ]])*(ROUNDDOWN($B15,10)>=ROUNDDOWN(ElencoCorsi[ORA INIZIO],10))*($B15<=ElencoCorsi[ORA FINE]),ElencoCorsi[UNIVOCO]),ElencoCorsi[UNIVOCO],0),2),0)","v":0},{"$f":"IFERROR(INDEX(ElencoCorsi[],MATCH(SUMPRODUCT((ElencoCorsi[GIORNO]=ProgrammaDelCorso[[#Headers],[GIOVEDÌ]])*(ROUNDDOWN($B15,10)>=ROUNDDOWN(ElencoCorsi[ORA INIZIO],10))*($B15<=ElencoCorsi[ORA FINE]),ElencoCorsi[UNIVOCO]),ElencoCorsi[UNIVOCO],0),2),0)","v":0},{"$f":"IFERROR(INDEX(ElencoCorsi[],MATCH(SUMPRODUCT((ElencoCorsi[GIORNO]=ProgrammaDelCorso[[#Headers],[VENERDÌ]])*(ROUNDDOWN($B15,10)>=ROUNDDOWN(ElencoCorsi[ORA INIZIO],10))*($B15<=ElencoCorsi[ORA FINE]),ElencoCorsi[UNIVOCO]),ElencoCorsi[UNIVOCO],0),2),0)","v":0},{"$f":"IFERROR(INDEX(ElencoCorsi[],MATCH(SUMPRODUCT((ElencoCorsi[GIORNO]=ProgrammaDelCorso[[#Headers],[SABATO]])*(ROUNDDOWN($B15,10)>=ROUNDDOWN(ElencoCorsi[ORA INIZIO],10))*($B15<=ElencoCorsi[ORA FINE]),ElencoCorsi[UNIVOCO]),ElencoCorsi[UNIVOCO],0),2),0)","v":0}]
[null,"11:00:00",{"$f":"IFERROR(INDEX(ElencoCorsi[],MATCH(SUMPRODUCT((ElencoCorsi[GIORNO]=ProgrammaDelCorso[[#Headers],[DOMENICA]])*(ROUNDDOWN($B16,10)>=ROUNDDOWN(ElencoCorsi[ORA INIZIO],10))*($B16<=ElencoCorsi[ORA FINE]),ElencoCorsi[UNIVOCO]),ElencoCorsi[UNIVOCO],0),2),0)","v":0},{"$f":"IFERROR(INDEX(ElencoCorsi[],MATCH(SUMPRODUCT((ElencoCorsi[GIORNO]=ProgrammaDelCorso[[#Headers],[LUNEDÌ]])*(ROUNDDOWN($B16,10)>=ROUNDDOWN(ElencoCorsi[ORA INIZIO],10))*($B16<=ElencoCorsi[ORA FINE]),ElencoCorsi[UNIVOCO]),ElencoCorsi[UNIVOCO],0),2),0)","v":0},{"$f":"IFERROR(INDEX(ElencoCorsi[],MATCH(SUMPRODUCT((ElencoCorsi[GIORNO]=ProgrammaDelCorso[[#Headers],[MARTEDÌ]])*(ROUNDDOWN($B16,10)>=ROUNDDOWN(ElencoCorsi[ORA INIZIO],10))*($B16<=ElencoCorsi[ORA FINE]),ElencoCorsi[UNIVOCO]),ElencoCorsi[UNIVOCO],0),2),0)","v":"SAL-295"},{"$f":"IFERROR(INDEX(ElencoCorsi[],MATCH(SUMPRODUCT((ElencoCorsi[GIORNO]=ProgrammaDelCorso[[#Headers],[MERCOLEDÌ]])*(ROUNDDOWN($B16,10)>=ROUNDDOWN(ElencoCorsi[ORA INIZIO],10))*($B16<=ElencoCorsi[ORA FINE]),ElencoCorsi[UNIVOCO]),ElencoCorsi[UNIVOCO],0),2),0)","v":0},{"$f":"IFERROR(INDEX(ElencoCorsi[],MATCH(SUMPRODUCT((ElencoCorsi[GIORNO]=ProgrammaDelCorso[[#Headers],[GIOVEDÌ]])*(ROUNDDOWN($B16,10)>=ROUNDDOWN(ElencoCorsi[ORA INIZIO],10))*($B16<=ElencoCorsi[ORA FINE]),ElencoCorsi[UNIVOCO]),ElencoCorsi[UNIVOCO],0),2),0)","v":"SAL-295"},{"$f":"IFERROR(INDEX(ElencoCorsi[],MATCH(SUMPRODUCT((ElencoCorsi[GIORNO]=ProgrammaDelCorso[[#Headers],[VENERDÌ]])*(ROUNDDOWN($B16,10)>=ROUNDDOWN(ElencoCorsi[ORA INIZIO],10))*($B16<=ElencoCorsi[ORA FINE]),ElencoCorsi[UNIVOCO]),ElencoCorsi[UNIVOCO],0),2),0)","v":0},{"$f":"IFERROR(INDEX(ElencoCorsi[],MATCH(SUMPRODUCT((ElencoCorsi[GIORNO]=ProgrammaDelCorso[[#Headers],[SABATO]])*(ROUNDDOWN($B16,10)>=ROUNDDOWN(ElencoCorsi[ORA INIZIO],10))*($B16<=ElencoCorsi[ORA FINE]),ElencoCorsi[UNIVOCO]),ElencoCorsi[UNIVOCO],0),2),0)","v":0}]
[null,"11:15:00",{"$f":"IFERROR(INDEX(ElencoCorsi[],MATCH(SUMPRODUCT((ElencoCorsi[GIORNO]=ProgrammaDelCorso[[#Headers],[DOMENICA]])*(ROUNDDOWN($B17,10)>=ROUNDDOWN(ElencoCorsi[ORA INIZIO],10))*($B17<=ElencoCorsi[ORA FINE]),ElencoCorsi[UNIVOCO]),ElencoCorsi[UNIVOCO],0),2),0)","v":0},{"$f":"IFERROR(INDEX(ElencoCorsi[],MATCH(SUMPRODUCT((ElencoCorsi[GIORNO]=ProgrammaDelCorso[[#Headers],[LUNEDÌ]])*(ROUNDDOWN($B17,10)>=ROUNDDOWN(ElencoCorsi[ORA INIZIO],10))*($B17<=ElencoCorsi[ORA FINE]),ElencoCorsi[UNIVOCO]),ElencoCorsi[UNIVOCO],0),2),0)","v":0},{"$f":"IFERROR(INDEX(ElencoCorsi[],MATCH(SUMPRODUCT((ElencoCorsi[GIORNO]=ProgrammaDelCorso[[#Headers],[MARTEDÌ]])*(ROUNDDOWN($B17,10)>=ROUNDDOWN(ElencoCorsi[ORA INIZIO],10))*($B17<=ElencoCorsi[ORA FINE]),ElencoCorsi[UNIVOCO]),ElencoCorsi[UNIVOCO],0),2),0)","v":"SAL-295"},{"$f":"IFERROR(INDEX(ElencoCorsi[],MATCH(SUMPRODUCT((ElencoCorsi[GIORNO]=ProgrammaDelCorso[[#Headers],[MERCOLEDÌ]])*(ROUNDDOWN($B17,10)>=ROUNDDOWN(ElencoCorsi[ORA INIZIO],10))*($B17<=ElencoCorsi[ORA FINE]),ElencoCorsi[UNIVOCO]),ElencoCorsi[UNIVOCO],0),2),0)","v":0},{"$f":"IFERROR(INDEX(ElencoCorsi[],MATCH(SUMPRODUCT((ElencoCorsi[GIORNO]=ProgrammaDelCorso[[#Headers],[GIOVEDÌ]])*(ROUNDDOWN($B17,10)>=ROUNDDOWN(ElencoCorsi[ORA INIZIO],10))*($B17<=ElencoCorsi[ORA FINE]),ElencoCorsi[UNIVOCO]),ElencoCorsi[UNIVOCO],0),2),0)","v":"SAL-295"},{"$f":"IFERROR(INDEX(ElencoCorsi[],MATCH(SUMPRODUCT((ElencoCorsi[GIORNO]=ProgrammaDelCorso[[#Headers],[VENERDÌ]])*(ROUNDDOWN($B17,10)>=ROUNDDOWN(ElencoCorsi[ORA INIZIO],10))*($B17<=ElencoCorsi[ORA FINE]),ElencoCorsi[UNIVOCO]),ElencoCorsi[UNIVOCO],0),2),0)","v":0},{"$f":"IFERROR(INDEX(ElencoCorsi[],MATCH(SUMPRODUCT((ElencoCorsi[GIORNO]=ProgrammaDelCorso[[#Headers],[SABATO]])*(ROUNDDOWN($B17,10)>=ROUNDDOWN(ElencoCorsi[ORA INIZIO],10))*($B17<=ElencoCorsi[ORA FINE]),ElencoCorsi[UNIVOCO]),ElencoCorsi[UNIVOCO],0),2),0)","v":0}]
[null,"11:30:00",{"$f":"IFERROR(INDEX(ElencoCorsi[],MATCH(SUMPRODUCT((ElencoCorsi[GIORNO]=ProgrammaDelCorso[[#Headers],[DOMENICA]])*(ROUNDDOWN($B18,10)>=ROUNDDOWN(ElencoCorsi[ORA INIZIO],10))*($B18<=ElencoCorsi[ORA FINE]),ElencoCorsi[UNIVOCO]),ElencoCorsi[UNIVOCO],0),2),0)","v":0},{"$f":"IFERROR(INDEX(ElencoCorsi[],MATCH(SUMPRODUCT((ElencoCorsi[GIORNO]=ProgrammaDelCorso[[#Headers],[LUNEDÌ]])*(ROUNDDOWN($B18,10)>=ROUNDDOWN(ElencoCorsi[ORA INIZIO],10))*($B18<=ElencoCorsi[ORA FINE]),ElencoCorsi[UNIVOCO]),ElencoCorsi[UNIVOCO],0),2),0)","v":0},{"$f":"IFERROR(INDEX(ElencoCorsi[],MATCH(SUMPRODUCT((ElencoCorsi[GIORNO]=ProgrammaDelCorso[[#Headers],[MARTEDÌ]])*(ROUNDDOWN($B18,10)>=ROUNDDOWN(ElencoCorsi[ORA INIZIO],10))*($B18<=ElencoCorsi[ORA FINE]),ElencoCorsi[UNIVOCO]),ElencoCorsi[UNIVOCO],0),2),0)","v":"SAL-295"},{"$f":"IFERROR(INDEX(ElencoCorsi[],MATCH(SUMPRODUCT((ElencoCorsi[GIORNO]=ProgrammaDelCorso[[#Headers],[MERCOLEDÌ]])*(ROUNDDOWN($B18,10)>=ROUNDDOWN(ElencoCorsi[ORA INIZIO],10))*($B18<=ElencoCorsi[ORA FINE]),ElencoCorsi[UNIVOCO]),ElencoCorsi[UNIVOCO],0),2),0)","v":0},{"$f":"IFERROR(INDEX(ElencoCorsi[],MATCH(SUMPRODUCT((ElencoCorsi[GIORNO]=ProgrammaDelCorso[[#Headers],[GIOVEDÌ]])*(ROUNDDOWN($B18,10)>=ROUNDDOWN(ElencoCorsi[ORA INIZIO],10))*($B18<=ElencoCorsi[ORA FINE]),ElencoCorsi[UNIVOCO]),ElencoCorsi[UNIVOCO],0),2),0)","v":"SAL-295"},{"$f":"IFERROR(INDEX(ElencoCorsi[],MATCH(SUMPRODUCT((ElencoCorsi[GIORNO]=ProgrammaDelCorso[[#Headers],[VENERDÌ]])*(ROUNDDOWN($B18,10)>=ROUNDDOWN(ElencoCorsi[ORA INIZIO],10))*($B18<=ElencoCorsi[ORA FINE]),ElencoCorsi[UNIVOCO]),ElencoCorsi[UNIVOCO],0),2),0)","v":0},{"$f":"IFERROR(INDEX(ElencoCorsi[],MATCH(SUMPRODUCT((ElencoCorsi[GIORNO]=ProgrammaDelCorso[[#Headers],[SABATO]])*(ROUNDDOWN($B18,10)>=ROUNDDOWN(ElencoCorsi[ORA INIZIO],10))*($B18<=ElencoCorsi[ORA FINE]),ElencoCorsi[UNIVOCO]),ElencoCorsi[UNIVOCO],0),2),0)","v":0}]
[null,"11:45:00",{"$f":"IFERROR(INDEX(ElencoCorsi[],MATCH(SUMPRODUCT((ElencoCorsi[GIORNO]=ProgrammaDelCorso[[#Headers],[DOMENICA]])*(ROUNDDOWN($B19,10)>=ROUNDDOWN(ElencoCorsi[ORA INIZIO],10))*($B19<=ElencoCorsi[ORA FINE]),ElencoCorsi[UNIVOCO]),ElencoCorsi[UNIVOCO],0),2),0)","v":0},{"$f":"IFERROR(INDEX(ElencoCorsi[],MATCH(SUMPRODUCT((ElencoCorsi[GIORNO]=ProgrammaDelCorso[[#Headers],[LUNEDÌ]])*(ROUNDDOWN($B19,10)>=ROUNDDOWN(ElencoCorsi[ORA INIZIO],10))*($B19<=ElencoCorsi[ORA FINE]),ElencoCorsi[UNIVOCO]),ElencoCorsi[UNIVOCO],0),2),0)","v":0},{"$f":"IFERROR(INDEX(ElencoCorsi[],MATCH(SUMPRODUCT((ElencoCorsi[GIORNO]=ProgrammaDelCorso[[#Headers],[MARTEDÌ]])*(ROUNDDOWN($B19,10)>=ROUNDDOWN(ElencoCorsi[ORA INIZIO],10))*($B19<=ElencoCorsi[ORA FINE]),ElencoCorsi[UNIVOCO]),ElencoCorsi[UNIVOCO],0),2),0)","v":"SAL-295"},{"$f":"IFERROR(INDEX(ElencoCorsi[],MATCH(SUMPRODUCT((ElencoCorsi[GIORNO]=ProgrammaDelCorso[[#Headers],[MERCOLEDÌ]])*(ROUNDDOWN($B19,10)>=ROUNDDOWN(ElencoCorsi[ORA INIZIO],10))*($B19<=ElencoCorsi[ORA FINE]),ElencoCorsi[UNIVOCO]),ElencoCorsi[UNIVOCO],0),2),0)","v":0},{"$f":"IFERROR(INDEX(ElencoCorsi[],MATCH(SUMPRODUCT((ElencoCorsi[GIORNO]=ProgrammaDelCorso[[#Headers],[GIOVEDÌ]])*(ROUNDDOWN($B19,10)>=ROUNDDOWN(ElencoCorsi[ORA INIZIO],10))*($B19<=ElencoCorsi[ORA FINE]),ElencoCorsi[UNIVOCO]),ElencoCorsi[UNIVOCO],0),2),0)","v":"SAL-295"},{"$f":"IFERROR(INDEX(ElencoCorsi[],MATCH(SUMPRODUCT((ElencoCorsi[GIORNO]=ProgrammaDelCorso[[#Headers],[VENERDÌ]])*(ROUNDDOWN($B19,10)>=ROUNDDOWN(ElencoCorsi[ORA INIZIO],10))*($B19<=ElencoCorsi[ORA FINE]),ElencoCorsi[UNIVOCO]),ElencoCorsi[UNIVOCO],0),2),0)","v":0},{"$f":"IFERROR(INDEX(ElencoCorsi[],MATCH(SUMPRODUCT((ElencoCorsi[GIORNO]=ProgrammaDelCorso[[#Headers],[SABATO]])*(ROUNDDOWN($B19,10)>=ROUNDDOWN(ElencoCorsi[ORA INIZIO],10))*($B19<=ElencoCorsi[ORA FINE]),ElencoCorsi[UNIVOCO]),ElencoCorsi[UNIVOCO],0),2),0)","v":0}]
[null,"12:00:00",{"$f":"IFERROR(INDEX(ElencoCorsi[],MATCH(SUMPRODUCT((ElencoCorsi[GIORNO]=ProgrammaDelCorso[[#Headers],[DOMENICA]])*(ROUNDDOWN($B20,10)>=ROUNDDOWN(ElencoCorsi[ORA INIZIO],10))*($B20<=ElencoCorsi[ORA FINE]),ElencoCorsi[UNIVOCO]),ElencoCorsi[UNIVOCO],0),2),0)","v":0},{"$f":"IFERROR(INDEX(ElencoCorsi[],MATCH(SUMPRODUCT((ElencoCorsi[GIORNO]=ProgrammaDelCorso[[#Headers],[LUNEDÌ]])*(ROUNDDOWN($B20,10)>=ROUNDDOWN(ElencoCorsi[ORA INIZIO],10))*($B20<=ElencoCorsi[ORA FINE]),ElencoCorsi[UNIVOCO]),ElencoCorsi[UNIVOCO],0),2),0)","v":0},{"$f":"IFERROR(INDEX(ElencoCorsi[],MATCH(SUMPRODUCT((ElencoCorsi[GIORNO]=ProgrammaDelCorso[[#Headers],[MARTEDÌ]])*(ROUNDDOWN($B20,10)>=ROUNDDOWN(ElencoCorsi[ORA INIZIO],10))*($B20<=ElencoCorsi[ORA FINE]),ElencoCorsi[UNIVOCO]),ElencoCorsi[UNIVOCO],0),2),0)","v":"SAL-295"},{"$f":"IFERROR(INDEX(ElencoCorsi[],MATCH(SUMPRODUCT((ElencoCorsi[GIORNO]=ProgrammaDelCorso[[#Headers],[MERCOLEDÌ]])*(ROUNDDOWN($B20,10)>=ROUNDDOWN(ElencoCorsi[ORA INIZIO],10))*($B20<=ElencoCorsi[ORA FINE]),ElencoCorsi[UNIVOCO]),ElencoCorsi[UNIVOCO],0),2),0)","v":0},{"$f":"IFERROR(INDEX(ElencoCorsi[],MATCH(SUMPRODUCT((ElencoCorsi[GIORNO]=ProgrammaDelCorso[[#Headers],[GIOVEDÌ]])*(ROUNDDOWN($B20,10)>=ROUNDDOWN(ElencoCorsi[ORA INIZIO],10))*($B20<=ElencoCorsi[ORA FINE]),ElencoCorsi[UNIVOCO]),ElencoCorsi[UNIVOCO],0),2),0)","v":"SAL-295"},{"$f":"IFERROR(INDEX(ElencoCorsi[],MATCH(SUMPRODUCT((ElencoCorsi[GIORNO]=ProgrammaDelCorso[[#Headers],[VENERDÌ]])*(ROUNDDOWN($B20,10)>=ROUNDDOWN(ElencoCorsi[ORA INIZIO],10))*($B20<=ElencoCorsi[ORA FINE]),ElencoCorsi[UNIVOCO]),ElencoCorsi[UNIVOCO],0),2),0)","v":0},{"$f":"IFERROR(INDEX(ElencoCorsi[],MATCH(SUMPRODUCT((ElencoCorsi[GIORNO]=ProgrammaDelCorso[[#Headers],[SABATO]])*(ROUNDDOWN($B20,10)>=ROUNDDOWN(ElencoCorsi[ORA INIZIO],10))*($B20<=ElencoCorsi[ORA FINE]),ElencoCorsi[UNIVOCO]),ElencoCorsi[UNIVOCO],0),2),0)","v":0}]
[null,"12:15:00",{"$f":"IFERROR(INDEX(ElencoCorsi[],MATCH(SUMPRODUCT((ElencoCorsi[GIORNO]=ProgrammaDelCorso[[#Headers],[DOMENICA]])*(ROUNDDOWN($B21,10)>=ROUNDDOWN(ElencoCorsi[ORA INIZIO],10))*($B21<=ElencoCorsi[ORA FINE]),ElencoCorsi[UNIVOCO]),ElencoCorsi[UNIVOCO],0),2),0)","v":0},{"$f":"IFERROR(INDEX(ElencoCorsi[],MATCH(SUMPRODUCT((ElencoCorsi[GIORNO]=ProgrammaDelCorso[[#Headers],[LUNEDÌ]])*(ROUNDDOWN($B21,10)>=ROUNDDOWN(ElencoCorsi[ORA INIZIO],10))*($B21<=ElencoCorsi[ORA FINE]),ElencoCorsi[UNIVOCO]),ElencoCorsi[UNIVOCO],0),2),0)","v":0},{"$f":"IFERROR(INDEX(ElencoCorsi[],MATCH(SUMPRODUCT((ElencoCorsi[GIORNO]=ProgrammaDelCorso[[#Headers],[MARTEDÌ]])*(ROUNDDOWN($B21,10)>=ROUNDDOWN(ElencoCorsi[ORA INIZIO],10))*($B21<=ElencoCorsi[ORA FINE]),ElencoCorsi[UNIVOCO]),ElencoCorsi[UNIVOCO],0),2),0)","v":0},{"$f":"IFERROR(INDEX(ElencoCorsi[],MATCH(SUMPRODUCT((ElencoCorsi[GIORNO]=ProgrammaDelCorso[[#Headers],[MERCOLEDÌ]])*(ROUNDDOWN($B21,10)>=ROUNDDOWN(ElencoCorsi[ORA INIZIO],10))*($B21<=ElencoCorsi[ORA FINE]),ElencoCorsi[UNIVOCO]),ElencoCorsi[UNIVOCO],0),2),0)","v":0},{"$f":"IFERROR(INDEX(ElencoCorsi[],MATCH(SUMPRODUCT((ElencoCorsi[GIORNO]=ProgrammaDelCorso[[#Headers],[GIOVEDÌ]])*(ROUNDDOWN($B21,10)>=ROUNDDOWN(ElencoCorsi[ORA INIZIO],10))*($B21<=ElencoCorsi[ORA FINE]),ElencoCorsi[UNIVOCO]),ElencoCorsi[UNIVOCO],0),2),0)","v":0},{"$f":"IFERROR(INDEX(ElencoCorsi[],MATCH(SUMPRODUCT((ElencoCorsi[GIORNO]=ProgrammaDelCorso[[#Headers],[VENERDÌ]])*(ROUNDDOWN($B21,10)>=ROUNDDOWN(ElencoCorsi[ORA INIZIO],10))*($B21<=ElencoCorsi[ORA FINE]),ElencoCorsi[UNIVOCO]),ElencoCorsi[UNIVOCO],0),2),0)","v":0},{"$f":"IFERROR(INDEX(ElencoCorsi[],MATCH(SUMPRODUCT((ElencoCorsi[GIORNO]=ProgrammaDelCorso[[#Headers],[SABATO]])*(ROUNDDOWN($B21,10)>=ROUNDDOWN(ElencoCorsi[ORA INIZIO],10))*($B21<=ElencoCorsi[ORA FINE]),ElencoCorsi[UNIVOCO]),ElencoCorsi[UNIVOCO],0),2),0)","v":0}]
[null,"12:30:00",{"$f":"IFERROR(INDEX(ElencoCorsi[],MATCH(SUMPRODUCT((ElencoCorsi[GIORNO]=ProgrammaDelCorso[[#Headers],[DOMENICA]])*(ROUNDDOWN($B22,10)>=ROUNDDOWN(ElencoCorsi[ORA INIZIO],10))*($B22<=ElencoCorsi[ORA FINE]),ElencoCorsi[UNIVOCO]),ElencoCorsi[UNIVOCO],0),2),0)","v":0},{"$f":"IFERROR(INDEX(ElencoCorsi[],MATCH(SUMPRODUCT((ElencoCorsi[GIORNO]=ProgrammaDelCorso[[#Headers],[LUNEDÌ]])*(ROUNDDOWN($B22,10)>=ROUNDDOWN(ElencoCorsi[ORA INIZIO],10))*($B22<=ElencoCorsi[ORA FINE]),ElencoCorsi[UNIVOCO]),ElencoCorsi[UNIVOCO],0),2),0)","v":0},{"$f":"IFERROR(INDEX(ElencoCorsi[],MATCH(SUMPRODUCT((ElencoCorsi[GIORNO]=ProgrammaDelCorso[[#Headers],[MARTEDÌ]])*(ROUNDDOWN($B22,10)>=ROUNDDOWN(ElencoCorsi[ORA INIZIO],10))*($B22<=ElencoCorsi[ORA FINE]),ElencoCorsi[UNIVOCO]),ElencoCorsi[UNIVOCO],0),2),0)","v":0},{"$f":"IFERROR(INDEX(ElencoCorsi[],MATCH(SUMPRODUCT((ElencoCorsi[GIORNO]=ProgrammaDelCorso[[#Headers],[MERCOLEDÌ]])*(ROUNDDOWN($B22,10)>=ROUNDDOWN(ElencoCorsi[ORA INIZIO],10))*($B22<=ElencoCorsi[ORA FINE]),ElencoCorsi[UNIVOCO]),ElencoCorsi[UNIVOCO],0),2),0)","v":0},{"$f":"IFERROR(INDEX(ElencoCorsi[],MATCH(SUMPRODUCT((ElencoCorsi[GIORNO]=ProgrammaDelCorso[[#Headers],[GIOVEDÌ]])*(ROUNDDOWN($B22,10)>=ROUNDDOWN(ElencoCorsi[ORA INIZIO],10))*($B22<=ElencoCorsi[ORA FINE]),ElencoCorsi[UNIVOCO]),ElencoCorsi[UNIVOCO],0),2),0)","v":0},{"$f":"IFERROR(INDEX(ElencoCorsi[],MATCH(SUMPRODUCT((ElencoCorsi[GIORNO]=ProgrammaDelCorso[[#Headers],[VENERDÌ]])*(ROUNDDOWN($B22,10)>=ROUNDDOWN(ElencoCorsi[ORA INIZIO],10))*($B22<=ElencoCorsi[ORA FINE]),ElencoCorsi[UNIVOCO]),ElencoCorsi[UNIVOCO],0),2),0)","v":0},{"$f":"IFERROR(INDEX(ElencoCorsi[],MATCH(SUMPRODUCT((ElencoCorsi[GIORNO]=ProgrammaDelCorso[[#Headers],[SABATO]])*(ROUNDDOWN($B22,10)>=ROUNDDOWN(ElencoCorsi[ORA INIZIO],10))*($B22<=ElencoCorsi[ORA FINE]),ElencoCorsi[UNIVOCO]),ElencoCorsi[UNIVOCO],0),2),0)","v":0}]
[null,"12:45:00",{"$f":"IFERROR(INDEX(ElencoCorsi[],MATCH(SUMPRODUCT((ElencoCorsi[GIORNO]=ProgrammaDelCorso[[#Headers],[DOMENICA]])*(ROUNDDOWN($B23,10)>=ROUNDDOWN(ElencoCorsi[ORA INIZIO],10))*($B23<=ElencoCorsi[ORA FINE]),ElencoCorsi[UNIVOCO]),ElencoCorsi[UNIVOCO],0),2),0)","v":0},{"$f":"IFERROR(INDEX(ElencoCorsi[],MATCH(SUMPRODUCT((ElencoCorsi[GIORNO]=ProgrammaDelCorso[[#Headers],[LUNEDÌ]])*(ROUNDDOWN($B23,10)>=ROUNDDOWN(ElencoCorsi[ORA INIZIO],10))*($B23<=ElencoCorsi[ORA FINE]),ElencoCorsi[UNIVOCO]),ElencoCorsi[UNIVOCO],0),2),0)","v":0},{"$f":"IFERROR(INDEX(ElencoCorsi[],MATCH(SUMPRODUCT((ElencoCorsi[GIORNO]=ProgrammaDelCorso[[#Headers],[MARTEDÌ]])*(ROUNDDOWN($B23,10)>=ROUNDDOWN(ElencoCorsi[ORA INIZIO],10))*($B23<=ElencoCorsi[ORA FINE]),ElencoCorsi[UNIVOCO]),ElencoCorsi[UNIVOCO],0),2),0)","v":0},{"$f":"IFERROR(INDEX(ElencoCorsi[],MATCH(SUMPRODUCT((ElencoCorsi[GIORNO]=ProgrammaDelCorso[[#Headers],[MERCOLEDÌ]])*(ROUNDDOWN($B23,10)>=ROUNDDOWN(ElencoCorsi[ORA INIZIO],10))*($B23<=ElencoCorsi[ORA FINE]),ElencoCorsi[UNIVOCO]),ElencoCorsi[UNIVOCO],0),2),0)","v":0},{"$f":"IFERROR(INDEX(ElencoCorsi[],MATCH(SUMPRODUCT((ElencoCorsi[GIORNO]=ProgrammaDelCorso[[#Headers],[GIOVEDÌ]])*(ROUNDDOWN($B23,10)>=ROUNDDOWN(ElencoCorsi[ORA INIZIO],10))*($B23<=ElencoCorsi[ORA FINE]),ElencoCorsi[UNIVOCO]),ElencoCorsi[UNIVOCO],0),2),0)","v":0},{"$f":"IFERROR(INDEX(ElencoCorsi[],MATCH(SUMPRODUCT((ElencoCorsi[GIORNO]=ProgrammaDelCorso[[#Headers],[VENERDÌ]])*(ROUNDDOWN($B23,10)>=ROUNDDOWN(ElencoCorsi[ORA INIZIO],10))*($B23<=ElencoCorsi[ORA FINE]),ElencoCorsi[UNIVOCO]),ElencoCorsi[UNIVOCO],0),2),0)","v":0},{"$f":"IFERROR(INDEX(ElencoCorsi[],MATCH(SUMPRODUCT((ElencoCorsi[GIORNO]=ProgrammaDelCorso[[#Headers],[SABATO]])*(ROUNDDOWN($B23,10)>=ROUNDDOWN(ElencoCorsi[ORA INIZIO],10))*($B23<=ElencoCorsi[ORA FINE]),ElencoCorsi[UNIVOCO]),ElencoCorsi[UNIVOCO],0),2),0)","v":0}]
[null,"13:00:00",{"$f":"IFERROR(INDEX(ElencoCorsi[],MATCH(SUMPRODUCT((ElencoCorsi[GIORNO]=ProgrammaDelCorso[[#Headers],[DOMENICA]])*(ROUNDDOWN($B24,10)>=ROUNDDOWN(ElencoCorsi[ORA INIZIO],10))*($B24<=ElencoCorsi[ORA FINE]),ElencoCorsi[UNIVOCO]),ElencoCorsi[UNIVOCO],0),2),0)","v":0},{"$f":"IFERROR(INDEX(ElencoCorsi[],MATCH(SUMPRODUCT((ElencoCorsi[GIORNO]=ProgrammaDelCorso[[#Headers],[LUNEDÌ]])*(ROUNDDOWN($B24,10)>=ROUNDDOWN(ElencoCorsi[ORA INIZIO],10))*($B24<=ElencoCorsi[ORA FINE]),ElencoCorsi[UNIVOCO]),ElencoCorsi[UNIVOCO],0),2),0)","v":"ST-121"},{"$f":"IFERROR(INDEX(ElencoCorsi[],MATCH(SUMPRODUCT((ElencoCorsi[GIORNO]=ProgrammaDelCorso[[#Headers],[MARTEDÌ]])*(ROUNDDOWN($B24,10)>=ROUNDDOWN(ElencoCorsi[ORA INIZIO],10))*($B24<=ElencoCorsi[ORA FINE]),ElencoCorsi[UNIVOCO]),ElencoCorsi[UNIVOCO],0),2),0)","v":0},{"$f":"IFERROR(INDEX(ElencoCorsi[],MATCH(SUMPRODUCT((ElencoCorsi[GIORNO]=ProgrammaDelCorso[[#Headers],[MERCOLEDÌ]])*(ROUNDDOWN($B24,10)>=ROUNDDOWN(ElencoCorsi[ORA INIZIO],10))*($B24<=ElencoCorsi[ORA FINE]),ElencoCorsi[UNIVOCO]),ElencoCorsi[UNIVOCO],0),2),0)","v":"ST-121"},{"$f":"IFERROR(INDEX(ElencoCorsi[],MATCH(SUMPRODUCT((ElencoCorsi[GIORNO]=ProgrammaDelCorso[[#Headers],[GIOVEDÌ]])*(ROUNDDOWN($B24,10)>=ROUNDDOWN(ElencoCorsi[ORA INIZIO],10))*($B24<=ElencoCorsi[ORA FINE]),ElencoCorsi[UNIVOCO]),ElencoCorsi[UNIVOCO],0),2),0)","v":0},{"$f":"IFERROR(INDEX(ElencoCorsi[],MATCH(SUMPRODUCT((ElencoCorsi[GIORNO]=ProgrammaDelCorso[[#Headers],[VENERDÌ]])*(ROUNDDOWN($B24,10)>=ROUNDDOWN(ElencoCorsi[ORA INIZIO],10))*($B24<=ElencoCorsi[ORA FINE]),ElencoCorsi[UNIVOCO]),ElencoCorsi[UNIVOCO],0),2),0)","v":0},{"$f":"IFERROR(INDEX(ElencoCorsi[],MATCH(SUMPRODUCT((ElencoCorsi[GIORNO]=ProgrammaDelCorso[[#Headers],[SABATO]])*(ROUNDDOWN($B24,10)>=ROUNDDOWN(ElencoCorsi[ORA INIZIO],10))*($B24<=ElencoCorsi[ORA FINE]),ElencoCorsi[UNIVOCO]),ElencoCorsi[UNIVOCO],0),2),0)","v":0}]
[null,"13:15:00",{"$f":"IFERROR(INDEX(ElencoCorsi[],MATCH(SUMPRODUCT((ElencoCorsi[GIORNO]=ProgrammaDelCorso[[#Headers],[DOMENICA]])*(ROUNDDOWN($B25,10)>=ROUNDDOWN(ElencoCorsi[ORA INIZIO],10))*($B25<=ElencoCorsi[ORA FINE]),ElencoCorsi[UNIVOCO]),ElencoCorsi[UNIVOCO],0),2),0)","v":0},{"$f":"IFERROR(INDEX(ElencoCorsi[],MATCH(SUMPRODUCT((ElencoCorsi[GIORNO]=ProgrammaDelCorso[[#Headers],[LUNEDÌ]])*(ROUNDDOWN($B25,10)>=ROUNDDOWN(ElencoCorsi[ORA INIZIO],10))*($B25<=ElencoCorsi[ORA FINE]),ElencoCorsi[UNIVOCO]),ElencoCorsi[UNIVOCO],0),2),0)","v":"ST-121"},{"$f":"IFERROR(INDEX(ElencoCorsi[],MATCH(SUMPRODUCT((ElencoCorsi[GIORNO]=ProgrammaDelCorso[[#Headers],[MARTEDÌ]])*(ROUNDDOWN($B25,10)>=ROUNDDOWN(ElencoCorsi[ORA INIZIO],10))*($B25<=ElencoCorsi[ORA FINE]),ElencoCorsi[UNIVOCO]),ElencoCorsi[UNIVOCO],0),2),0)","v":0},{"$f":"IFERROR(INDEX(ElencoCorsi[],MATCH(SUMPRODUCT((ElencoCorsi[GIORNO]=ProgrammaDelCorso[[#Headers],[MERCOLEDÌ]])*(ROUNDDOWN($B25,10)>=ROUNDDOWN(ElencoCorsi[ORA INIZIO],10))*($B25<=ElencoCorsi[ORA FINE]),ElencoCorsi[UNIVOCO]),ElencoCorsi[UNIVOCO],0),2),0)","v":"ST-121"},{"$f":"IFERROR(INDEX(ElencoCorsi[],MATCH(SUMPRODUCT((ElencoCorsi[GIORNO]=ProgrammaDelCorso[[#Headers],[GIOVEDÌ]])*(ROUNDDOWN($B25,10)>=ROUNDDOWN(ElencoCorsi[ORA INIZIO],10))*($B25<=ElencoCorsi[ORA FINE]),ElencoCorsi[UNIVOCO]),ElencoCorsi[UNIVOCO],0),2),0)","v":0},{"$f":"IFERROR(INDEX(ElencoCorsi[],MATCH(SUMPRODUCT((ElencoCorsi[GIORNO]=ProgrammaDelCorso[[#Headers],[VENERDÌ]])*(ROUNDDOWN($B25,10)>=ROUNDDOWN(ElencoCorsi[ORA INIZIO],10))*($B25<=ElencoCorsi[ORA FINE]),ElencoCorsi[UNIVOCO]),ElencoCorsi[UNIVOCO],0),2),0)","v":0},{"$f":"IFERROR(INDEX(ElencoCorsi[],MATCH(SUMPRODUCT((ElencoCorsi[GIORNO]=ProgrammaDelCorso[[#Headers],[SABATO]])*(ROUNDDOWN($B25,10)>=ROUNDDOWN(ElencoCorsi[ORA INIZIO],10))*($B25<=ElencoCorsi[ORA FINE]),ElencoCorsi[UNIVOCO]),ElencoCorsi[UNIVOCO],0),2),0)","v":0}]
[null,"13:30:00",{"$f":"IFERROR(INDEX(ElencoCorsi[],MATCH(SUMPRODUCT((ElencoCorsi[GIORNO]=ProgrammaDelCorso[[#Headers],[DOMENICA]])*(ROUNDDOWN($B26,10)>=ROUNDDOWN(ElencoCorsi[ORA INIZIO],10))*($B26<=ElencoCorsi[ORA FINE]),ElencoCorsi[UNIVOCO]),ElencoCorsi[UNIVOCO],0),2),0)","v":0},{"$f":"IFERROR(INDEX(ElencoCorsi[],MATCH(SUMPRODUCT((ElencoCorsi[GIORNO]=ProgrammaDelCorso[[#Headers],[LUNEDÌ]])*(ROUNDDOWN($B26,10)>=ROUNDDOWN(ElencoCorsi[ORA INIZIO],10))*($B26<=ElencoCorsi[ORA FINE]),ElencoCorsi[UNIVOCO]),ElencoCorsi[UNIVOCO],0),2),0)","v":"ST-121"},{"$f":"IFERROR(INDEX(ElencoCorsi[],MATCH(SUMPRODUCT((ElencoCorsi[GIORNO]=ProgrammaDelCorso[[#Headers],[MARTEDÌ]])*(ROUNDDOWN($B26,10)>=ROUNDDOWN(ElencoCorsi[ORA INIZIO],10))*($B26<=ElencoCorsi[ORA FINE]),ElencoCorsi[UNIVOCO]),ElencoCorsi[UNIVOCO],0),2),0)","v":0},{"$f":"IFERROR(INDEX(ElencoCorsi[],MATCH(SUMPRODUCT((ElencoCorsi[GIORNO]=ProgrammaDelCorso[[#Headers],[MERCOLEDÌ]])*(ROUNDDOWN($B26,10)>=ROUNDDOWN(ElencoCorsi[ORA INIZIO],10))*($B26<=ElencoCorsi[ORA FINE]),ElencoCorsi[UNIVOCO]),ElencoCorsi[UNIVOCO],0),2),0)","v":"ST-121"},{"$f":"IFERROR(INDEX(ElencoCorsi[],MATCH(SUMPRODUCT((ElencoCorsi[GIORNO]=ProgrammaDelCorso[[#Headers],[GIOVEDÌ]])*(ROUNDDOWN($B26,10)>=ROUNDDOWN(ElencoCorsi[ORA INIZIO],10))*($B26<=ElencoCorsi[ORA FINE]),ElencoCorsi[UNIVOCO]),ElencoCorsi[UNIVOCO],0),2),0)","v":0},{"$f":"IFERROR(INDEX(ElencoCorsi[],MATCH(SUMPRODUCT((ElencoCorsi[GIORNO]=ProgrammaDelCorso[[#Headers],[VENERDÌ]])*(ROUNDDOWN($B26,10)>=ROUNDDOWN(ElencoCorsi[ORA INIZIO],10))*($B26<=ElencoCorsi[ORA FINE]),ElencoCorsi[UNIVOCO]),ElencoCorsi[UNIVOCO],0),2),0)","v":0},{"$f":"IFERROR(INDEX(ElencoCorsi[],MATCH(SUMPRODUCT((ElencoCorsi[GIORNO]=ProgrammaDelCorso[[#Headers],[SABATO]])*(ROUNDDOWN($B26,10)>=ROUNDDOWN(ElencoCorsi[ORA INIZIO],10))*($B26<=ElencoCorsi[ORA FINE]),ElencoCorsi[UNIVOCO]),ElencoCorsi[UNIVOCO],0),2),0)","v":0}]
[null,"13:45:00",{"$f":"IFERROR(INDEX(ElencoCorsi[],MATCH(SUMPRODUCT((ElencoCorsi[GIORNO]=ProgrammaDelCorso[[#Headers],[DOMENICA]])*(ROUNDDOWN($B27,10)>=ROUNDDOWN(ElencoCorsi[ORA INIZIO],10))*($B27<=ElencoCorsi[ORA FINE]),ElencoCorsi[UNIVOCO]),ElencoCorsi[UNIVOCO],0),2),0)","v":0},{"$f":"IFERROR(INDEX(ElencoCorsi[],MATCH(SUMPRODUCT((ElencoCorsi[GIORNO]=ProgrammaDelCorso[[#Headers],[LUNEDÌ]])*(ROUNDDOWN($B27,10)>=ROUNDDOWN(ElencoCorsi[ORA INIZIO],10))*($B27<=ElencoCorsi[ORA FINE]),ElencoCorsi[UNIVOCO]),ElencoCorsi[UNIVOCO],0),2),0)","v":"ST-121"},{"$f":"IFERROR(INDEX(ElencoCorsi[],MATCH(SUMPRODUCT((ElencoCorsi[GIORNO]=ProgrammaDelCorso[[#Headers],[MARTEDÌ]])*(ROUNDDOWN($B27,10)>=ROUNDDOWN(ElencoCorsi[ORA INIZIO],10))*($B27<=ElencoCorsi[ORA FINE]),ElencoCorsi[UNIVOCO]),ElencoCorsi[UNIVOCO],0),2),0)","v":0},{"$f":"IFERROR(INDEX(ElencoCorsi[],MATCH(SUMPRODUCT((ElencoCorsi[GIORNO]=ProgrammaDelCorso[[#Headers],[MERCOLEDÌ]])*(ROUNDDOWN($B27,10)>=ROUNDDOWN(ElencoCorsi[ORA INIZIO],10))*($B27<=ElencoCorsi[ORA FINE]),ElencoCorsi[UNIVOCO]),ElencoCorsi[UNIVOCO],0),2),0)","v":"ST-121"},{"$f":"IFERROR(INDEX(ElencoCorsi[],MATCH(SUMPRODUCT((ElencoCorsi[GIORNO]=ProgrammaDelCorso[[#Headers],[GIOVEDÌ]])*(ROUNDDOWN($B27,10)>=ROUNDDOWN(ElencoCorsi[ORA INIZIO],10))*($B27<=ElencoCorsi[ORA FINE]),ElencoCorsi[UNIVOCO]),ElencoCorsi[UNIVOCO],0),2),0)","v":0},{"$f":"IFERROR(INDEX(ElencoCorsi[],MATCH(SUMPRODUCT((ElencoCorsi[GIORNO]=ProgrammaDelCorso[[#Headers],[VENERDÌ]])*(ROUNDDOWN($B27,10)>=ROUNDDOWN(ElencoCorsi[ORA INIZIO],10))*($B27<=ElencoCorsi[ORA FINE]),ElencoCorsi[UNIVOCO]),ElencoCorsi[UNIVOCO],0),2),0)","v":0},{"$f":"IFERROR(INDEX(ElencoCorsi[],MATCH(SUMPRODUCT((ElencoCorsi[GIORNO]=ProgrammaDelCorso[[#Headers],[SABATO]])*(ROUNDDOWN($B27,10)>=ROUNDDOWN(ElencoCorsi[ORA INIZIO],10))*($B27<=ElencoCorsi[ORA FINE]),ElencoCorsi[UNIVOCO]),ElencoCorsi[UNIVOCO],0),2),0)","v":0}]
[null,"14:00:00",{"$f":"IFERROR(INDEX(ElencoCorsi[],MATCH(SUMPRODUCT((ElencoCorsi[GIORNO]=ProgrammaDelCorso[[#Headers],[DOMENICA]])*(ROUNDDOWN($B28,10)>=ROUNDDOWN(ElencoCorsi[ORA INIZIO],10))*($B28<=ElencoCorsi[ORA FINE]),ElencoCorsi[UNIVOCO]),ElencoCorsi[UNIVOCO],0),2),0)","v":0},{"$f":"IFERROR(INDEX(ElencoCorsi[],MATCH(SUMPRODUCT((ElencoCorsi[GIORNO]=ProgrammaDelCorso[[#Headers],[LUNEDÌ]])*(ROUNDDOWN($B28,10)>=ROUNDDOWN(ElencoCorsi[ORA INIZIO],10))*($B28<=ElencoCorsi[ORA FINE]),ElencoCorsi[UNIVOCO]),ElencoCorsi[UNIVOCO],0),2),0)","v":"ST-121"},{"$f":"IFERROR(INDEX(ElencoCorsi[],MATCH(SUMPRODUCT((ElencoCorsi[GIORNO]=ProgrammaDelCorso[[#Headers],[MARTEDÌ]])*(ROUNDDOWN($B28,10)>=ROUNDDOWN(ElencoCorsi[ORA INIZIO],10))*($B28<=ElencoCorsi[ORA FINE]),ElencoCorsi[UNIVOCO]),ElencoCorsi[UNIVOCO],0),2),0)","v":0},{"$f":"IFERROR(INDEX(ElencoCorsi[],MATCH(SUMPRODUCT((ElencoCorsi[GIORNO]=ProgrammaDelCorso[[#Headers],[MERCOLEDÌ]])*(ROUNDDOWN($B28,10)>=ROUNDDOWN(ElencoCorsi[ORA INIZIO],10))*($B28<=ElencoCorsi[ORA FINE]),ElencoCorsi[UNIVOCO]),ElencoCorsi[UNIVOCO],0),2),0)","v":"ST-121"},{"$f":"IFERROR(INDEX(ElencoCorsi[],MATCH(SUMPRODUCT((ElencoCorsi[GIORNO]=ProgrammaDelCorso[[#Headers],[GIOVEDÌ]])*(ROUNDDOWN($B28,10)>=ROUNDDOWN(ElencoCorsi[ORA INIZIO],10))*($B28<=ElencoCorsi[ORA FINE]),ElencoCorsi[UNIVOCO]),ElencoCorsi[UNIVOCO],0),2),0)","v":0},{"$f":"IFERROR(INDEX(ElencoCorsi[],MATCH(SUMPRODUCT((ElencoCorsi[GIORNO]=ProgrammaDelCorso[[#Headers],[VENERDÌ]])*(ROUNDDOWN($B28,10)>=ROUNDDOWN(ElencoCorsi[ORA INIZIO],10))*($B28<=ElencoCorsi[ORA FINE]),ElencoCorsi[UNIVOCO]),ElencoCorsi[UNIVOCO],0),2),0)","v":0},{"$f":"IFERROR(INDEX(ElencoCorsi[],MATCH(SUMPRODUCT((ElencoCorsi[GIORNO]=ProgrammaDelCorso[[#Headers],[SABATO]])*(ROUNDDOWN($B28,10)>=ROUNDDOWN(ElencoCorsi[ORA INIZIO],10))*($B28<=ElencoCorsi[ORA FINE]),ElencoCorsi[UNIVOCO]),ElencoCorsi[UNIVOCO],0),2),0)","v":0}]
[null,"14:15:00",{"$f":"IFERROR(INDEX(ElencoCorsi[],MATCH(SUMPRODUCT((ElencoCorsi[GIORNO]=ProgrammaDelCorso[[#Headers],[DOMENICA]])*(ROUNDDOWN($B29,10)>=ROUNDDOWN(ElencoCorsi[ORA INIZIO],10))*($B29<=ElencoCorsi[ORA FINE]),ElencoCorsi[UNIVOCO]),ElencoCorsi[UNIVOCO],0),2),0)","v":0},{"$f":"IFERROR(INDEX(ElencoCorsi[],MATCH(SUMPRODUCT((ElencoCorsi[GIORNO]=ProgrammaDelCorso[[#Headers],[LUNEDÌ]])*(ROUNDDOWN($B29,10)>=ROUNDDOWN(ElencoCorsi[ORA INIZIO],10))*($B29<=ElencoCorsi[ORA FINE]),ElencoCorsi[UNIVOCO]),ElencoCorsi[UNIVOCO],0),2),0)","v":0},{"$f":"IFERROR(INDEX(ElencoCorsi[],MATCH(SUMPRODUCT((ElencoCorsi[GIORNO]=ProgrammaDelCorso[[#Headers],[MARTEDÌ]])*(ROUNDDOWN($B29,10)>=ROUNDDOWN(ElencoCorsi[ORA INIZIO],10))*($B29<=ElencoCorsi[ORA FINE]),ElencoCorsi[UNIVOCO]),ElencoCorsi[UNIVOCO],0),2),0)","v":0},{"$f":"IFERROR(INDEX(ElencoCorsi[],MATCH(SUMPRODUCT((ElencoCorsi[GIORNO]=ProgrammaDelCorso[[#Headers],[MERCOLEDÌ]])*(ROUNDDOWN($B29,10)>=ROUNDDOWN(ElencoCorsi[ORA INIZIO],10))*($B29<=ElencoCorsi[ORA FINE]),ElencoCorsi[UNIVOCO]),ElencoCorsi[UNIVOCO],0),2),0)","v":0},{"$f":"IFERROR(INDEX(ElencoCorsi[],MATCH(SUMPRODUCT((ElencoCorsi[GIORNO]=ProgrammaDelCorso[[#Headers],[GIOVEDÌ]])*(ROUNDDOWN($B29,10)>=ROUNDDOWN(ElencoCorsi[ORA INIZIO],10))*($B29<=ElencoCorsi[ORA FINE]),ElencoCorsi[UNIVOCO]),ElencoCorsi[UNIVOCO],0),2),0)","v":0},{"$f":"IFERROR(INDEX(ElencoCorsi[],MATCH(SUMPRODUCT((ElencoCorsi[GIORNO]=ProgrammaDelCorso[[#Headers],[VENERDÌ]])*(ROUNDDOWN($B29,10)>=ROUNDDOWN(ElencoCorsi[ORA INIZIO],10))*($B29<=ElencoCorsi[ORA FINE]),ElencoCorsi[UNIVOCO]),ElencoCorsi[UNIVOCO],0),2),0)","v":0},{"$f":"IFERROR(INDEX(ElencoCorsi[],MATCH(SUMPRODUCT((ElencoCorsi[GIORNO]=ProgrammaDelCorso[[#Headers],[SABATO]])*(ROUNDDOWN($B29,10)>=ROUNDDOWN(ElencoCorsi[ORA INIZIO],10))*($B29<=ElencoCorsi[ORA FINE]),ElencoCorsi[UNIVOCO]),ElencoCorsi[UNIVOCO],0),2),0)","v":0}]
[null,"14:30:00",{"$f":"IFERROR(INDEX(ElencoCorsi[],MATCH(SUMPRODUCT((ElencoCorsi[GIORNO]=ProgrammaDelCorso[[#Headers],[DOMENICA]])*(ROUNDDOWN($B30,10)>=ROUNDDOWN(ElencoCorsi[ORA INIZIO],10))*($B30<=ElencoCorsi[ORA FINE]),ElencoCorsi[UNIVOCO]),ElencoCorsi[UNIVOCO],0),2),0)","v":0},{"$f":"IFERROR(INDEX(ElencoCorsi[],MATCH(SUMPRODUCT((ElencoCorsi[GIORNO]=ProgrammaDelCorso[[#Headers],[LUNEDÌ]])*(ROUNDDOWN($B30,10)>=ROUNDDOWN(ElencoCorsi[ORA INIZIO],10))*($B30<=ElencoCorsi[ORA FINE]),ElencoCorsi[UNIVOCO]),ElencoCorsi[UNIVOCO],0),2),0)","v":0},{"$f":"IFERROR(INDEX(ElencoCorsi[],MATCH(SUMPRODUCT((ElencoCorsi[GIORNO]=ProgrammaDelCorso[[#Headers],[MARTEDÌ]])*(ROUNDDOWN($B30,10)>=ROUNDDOWN(ElencoCorsi[ORA INIZIO],10))*($B30<=ElencoCorsi[ORA FINE]),ElencoCorsi[UNIVOCO]),ElencoCorsi[UNIVOCO],0),2),0)","v":0},{"$f":"IFERROR(INDEX(ElencoCorsi[],MATCH(SUMPRODUCT((ElencoCorsi[GIORNO]=ProgrammaDelCorso[[#Headers],[MERCOLEDÌ]])*(ROUNDDOWN($B30,10)>=ROUNDDOWN(ElencoCorsi[ORA INIZIO],10))*($B30<=ElencoCorsi[ORA FINE]),ElencoCorsi[UNIVOCO]),ElencoCorsi[UNIVOCO],0),2),0)","v":0},{"$f":"IFERROR(INDEX(ElencoCorsi[],MATCH(SUMPRODUCT((ElencoCorsi[GIORNO]=ProgrammaDelCorso[[#Headers],[GIOVEDÌ]])*(ROUNDDOWN($B30,10)>=ROUNDDOWN(ElencoCorsi[ORA INIZIO],10))*($B30<=ElencoCorsi[ORA FINE]),ElencoCorsi[UNIVOCO]),ElencoCorsi[UNIVOCO],0),2),0)","v":0},{"$f":"IFERROR(INDEX(ElencoCorsi[],MATCH(SUMPRODUCT((ElencoCorsi[GIORNO]=ProgrammaDelCorso[[#Headers],[VENERDÌ]])*(ROUNDDOWN($B30,10)>=ROUNDDOWN(ElencoCorsi[ORA INIZIO],10))*($B30<=ElencoCorsi[ORA FINE]),ElencoCorsi[UNIVOCO]),ElencoCorsi[UNIVOCO],0),2),0)","v":0},{"$f":"IFERROR(INDEX(ElencoCorsi[],MATCH(SUMPRODUCT((ElencoCorsi[GIORNO]=ProgrammaDelCorso[[#Headers],[SABATO]])*(ROUNDDOWN($B30,10)>=ROUNDDOWN(ElencoCorsi[ORA INIZIO],10))*($B30<=ElencoCorsi[ORA FINE]),ElencoCorsi[UNIVOCO]),ElencoCorsi[UNIVOCO],0),2),0)","v":0}]
[null,"14:45:00",{"$f":"IFERROR(INDEX(ElencoCorsi[],MATCH(SUMPRODUCT((ElencoCorsi[GIORNO]=ProgrammaDelCorso[[#Headers],[DOMENICA]])*(ROUNDDOWN($B31,10)>=ROUNDDOWN(ElencoCorsi[ORA INIZIO],10))*($B31<=ElencoCorsi[ORA FINE]),ElencoCorsi[UNIVOCO]),ElencoCorsi[UNIVOCO],0),2),0)","v":0},{"$f":"IFERROR(INDEX(ElencoCorsi[],MATCH(SUMPRODUCT((ElencoCorsi[GIORNO]=ProgrammaDelCorso[[#Headers],[LUNEDÌ]])*(ROUNDDOWN($B31,10)>=ROUNDDOWN(ElencoCorsi[ORA INIZIO],10))*($B31<=ElencoCorsi[ORA FINE]),ElencoCorsi[UNIVOCO]),ElencoCorsi[UNIVOCO],0),2),0)","v":0},{"$f":"IFERROR(INDEX(ElencoCorsi[],MATCH(SUMPRODUCT((ElencoCorsi[GIORNO]=ProgrammaDelCorso[[#Headers],[MARTEDÌ]])*(ROUNDDOWN($B31,10)>=ROUNDDOWN(ElencoCorsi[ORA INIZIO],10))*($B31<=ElencoCorsi[ORA FINE]),ElencoCorsi[UNIVOCO]),ElencoCorsi[UNIVOCO],0),2),0)","v":0},{"$f":"IFERROR(INDEX(ElencoCorsi[],MATCH(SUMPRODUCT((ElencoCorsi[GIORNO]=ProgrammaDelCorso[[#Headers],[MERCOLEDÌ]])*(ROUNDDOWN($B31,10)>=ROUNDDOWN(ElencoCorsi[ORA INIZIO],10))*($B31<=ElencoCorsi[ORA FINE]),ElencoCorsi[UNIVOCO]),ElencoCorsi[UNIVOCO],0),2),0)","v":0},{"$f":"IFERROR(INDEX(ElencoCorsi[],MATCH(SUMPRODUCT((ElencoCorsi[GIORNO]=ProgrammaDelCorso[[#Headers],[GIOVEDÌ]])*(ROUNDDOWN($B31,10)>=ROUNDDOWN(ElencoCorsi[ORA INIZIO],10))*($B31<=ElencoCorsi[ORA FINE]),ElencoCorsi[UNIVOCO]),ElencoCorsi[UNIVOCO],0),2),0)","v":0},{"$f":"IFERROR(INDEX(ElencoCorsi[],MATCH(SUMPRODUCT((ElencoCorsi[GIORNO]=ProgrammaDelCorso[[#Headers],[VENERDÌ]])*(ROUNDDOWN($B31,10)>=ROUNDDOWN(ElencoCorsi[ORA INIZIO],10))*($B31<=ElencoCorsi[ORA FINE]),ElencoCorsi[UNIVOCO]),ElencoCorsi[UNIVOCO],0),2),0)","v":0},{"$f":"IFERROR(INDEX(ElencoCorsi[],MATCH(SUMPRODUCT((ElencoCorsi[GIORNO]=ProgrammaDelCorso[[#Headers],[SABATO]])*(ROUNDDOWN($B31,10)>=ROUNDDOWN(ElencoCorsi[ORA INIZIO],10))*($B31<=ElencoCorsi[ORA FINE]),ElencoCorsi[UNIVOCO]),ElencoCorsi[UNIVOCO],0),2),0)","v":0}]
[null,"15:00:00",{"$f":"IFERROR(INDEX(ElencoCorsi[],MATCH(SUMPRODUCT((ElencoCorsi[GIORNO]=ProgrammaDelCorso[[#Headers],[DOMENICA]])*(ROUNDDOWN($B32,10)>=ROUNDDOWN(ElencoCorsi[ORA INIZIO],10))*($B32<=ElencoCorsi[ORA FINE]),ElencoCorsi[UNIVOCO]),ElencoCorsi[UNIVOCO],0),2),0)","v":0},{"$f":"IFERROR(INDEX(ElencoCorsi[],MATCH(SUMPRODUCT((ElencoCorsi[GIORNO]=ProgrammaDelCorso[[#Headers],[LUNEDÌ]])*(ROUNDDOWN($B32,10)>=ROUNDDOWN(ElencoCorsi[ORA INIZIO],10))*($B32<=ElencoCorsi[ORA FINE]),ElencoCorsi[UNIVOCO]),ElencoCorsi[UNIVOCO],0),2),0)","v":0},{"$f":"IFERROR(INDEX(ElencoCorsi[],MATCH(SUMPRODUCT((ElencoCorsi[GIORNO]=ProgrammaDelCorso[[#Headers],[MARTEDÌ]])*(ROUNDDOWN($B32,10)>=ROUNDDOWN(ElencoCorsi[ORA INIZIO],10))*($B32<=ElencoCorsi[ORA FINE]),ElencoCorsi[UNIVOCO]),ElencoCorsi[UNIVOCO],0),2),0)","v":0},{"$f":"IFERROR(INDEX(ElencoCorsi[],MATCH(SUMPRODUCT((ElencoCorsi[GIORNO]=ProgrammaDelCorso[[#Headers],[MERCOLEDÌ]])*(ROUNDDOWN($B32,10)>=ROUNDDOWN(ElencoCorsi[ORA INIZIO],10))*($B32<=ElencoCorsi[ORA FINE]),ElencoCorsi[UNIVOCO]),ElencoCorsi[UNIVOCO],0),2),0)","v":0},{"$f":"IFERROR(INDEX(ElencoCorsi[],MATCH(SUMPRODUCT((ElencoCorsi[GIORNO]=ProgrammaDelCorso[[#Headers],[GIOVEDÌ]])*(ROUNDDOWN($B32,10)>=ROUNDDOWN(ElencoCorsi[ORA INIZIO],10))*($B32<=ElencoCorsi[ORA FINE]),ElencoCorsi[UNIVOCO]),ElencoCorsi[UNIVOCO],0),2),0)","v":0},{"$f":"IFERROR(INDEX(ElencoCorsi[],MATCH(SUMPRODUCT((ElencoCorsi[GIORNO]=ProgrammaDelCorso[[#Headers],[VENERDÌ]])*(ROUNDDOWN($B32,10)>=ROUNDDOWN(ElencoCorsi[ORA INIZIO],10))*($B32<=ElencoCorsi[ORA FINE]),ElencoCorsi[UNIVOCO]),ElencoCorsi[UNIVOCO],0),2),0)","v":0},{"$f":"IFERROR(INDEX(ElencoCorsi[],MATCH(SUMPRODUCT((ElencoCorsi[GIORNO]=ProgrammaDelCorso[[#Headers],[SABATO]])*(ROUNDDOWN($B32,10)>=ROUNDDOWN(ElencoCorsi[ORA INIZIO],10))*($B32<=ElencoCorsi[ORA FINE]),ElencoCorsi[UNIVOCO]),ElencoCorsi[UNIVOCO],0),2),0)","v":0}]
[null,"15:15:00",{"$f":"IFERROR(INDEX(ElencoCorsi[],MATCH(SUMPRODUCT((ElencoCorsi[GIORNO]=ProgrammaDelCorso[[#Headers],[DOMENICA]])*(ROUNDDOWN($B33,10)>=ROUNDDOWN(ElencoCorsi[ORA INIZIO],10))*($B33<=ElencoCorsi[ORA FINE]),ElencoCorsi[UNIVOCO]),ElencoCorsi[UNIVOCO],0),2),0)","v":0},{"$f":"IFERROR(INDEX(ElencoCorsi[],MATCH(SUMPRODUCT((ElencoCorsi[GIORNO]=ProgrammaDelCorso[[#Headers],[LUNEDÌ]])*(ROUNDDOWN($B33,10)>=ROUNDDOWN(ElencoCorsi[ORA INIZIO],10))*($B33<=ElencoCorsi[ORA FINE]),ElencoCorsi[UNIVOCO]),ElencoCorsi[UNIVOCO],0),2),0)","v":0},{"$f":"IFERROR(INDEX(ElencoCorsi[],MATCH(SUMPRODUCT((ElencoCorsi[GIORNO]=ProgrammaDelCorso[[#Headers],[MARTEDÌ]])*(ROUNDDOWN($B33,10)>=ROUNDDOWN(ElencoCorsi[ORA INIZIO],10))*($B33<=ElencoCorsi[ORA FINE]),ElencoCorsi[UNIVOCO]),ElencoCorsi[UNIVOCO],0),2),0)","v":0},{"$f":"IFERROR(INDEX(ElencoCorsi[],MATCH(SUMPRODUCT((ElencoCorsi[GIORNO]=ProgrammaDelCorso[[#Headers],[MERCOLEDÌ]])*(ROUNDDOWN($B33,10)>=ROUNDDOWN(ElencoCorsi[ORA INIZIO],10))*($B33<=ElencoCorsi[ORA FINE]),ElencoCorsi[UNIVOCO]),ElencoCorsi[UNIVOCO],0),2),0)","v":0},{"$f":"IFERROR(INDEX(ElencoCorsi[],MATCH(SUMPRODUCT((ElencoCorsi[GIORNO]=ProgrammaDelCorso[[#Headers],[GIOVEDÌ]])*(ROUNDDOWN($B33,10)>=ROUNDDOWN(ElencoCorsi[ORA INIZIO],10))*($B33<=ElencoCorsi[ORA FINE]),ElencoCorsi[UNIVOCO]),ElencoCorsi[UNIVOCO],0),2),0)","v":0},{"$f":"IFERROR(INDEX(ElencoCorsi[],MATCH(SUMPRODUCT((ElencoCorsi[GIORNO]=ProgrammaDelCorso[[#Headers],[VENERDÌ]])*(ROUNDDOWN($B33,10)>=ROUNDDOWN(ElencoCorsi[ORA INIZIO],10))*($B33<=ElencoCorsi[ORA FINE]),ElencoCorsi[UNIVOCO]),ElencoCorsi[UNIVOCO],0),2),0)","v":0},{"$f":"IFERROR(INDEX(ElencoCorsi[],MATCH(SUMPRODUCT((ElencoCorsi[GIORNO]=ProgrammaDelCorso[[#Headers],[SABATO]])*(ROUNDDOWN($B33,10)>=ROUNDDOWN(ElencoCorsi[ORA INIZIO],10))*($B33<=ElencoCorsi[ORA FINE]),ElencoCorsi[UNIVOCO]),ElencoCorsi[UNIVOCO],0),2),0)","v":0}]
[null,"15:30:00",{"$f":"IFERROR(INDEX(ElencoCorsi[],MATCH(SUMPRODUCT((ElencoCorsi[GIORNO]=ProgrammaDelCorso[[#Headers],[DOMENICA]])*(ROUNDDOWN($B34,10)>=ROUNDDOWN(ElencoCorsi[ORA INIZIO],10))*($B34<=ElencoCorsi[ORA FINE]),ElencoCorsi[UNIVOCO]),ElencoCorsi[UNIVOCO],0),2),0)","v":0},{"$f":"IFERROR(INDEX(ElencoCorsi[],MATCH(SUMPRODUCT((ElencoCorsi[GIORNO]=ProgrammaDelCorso[[#Headers],[LUNEDÌ]])*(ROUNDDOWN($B34,10)>=ROUNDDOWN(ElencoCorsi[ORA INIZIO],10))*($B34<=ElencoCorsi[ORA FINE]),ElencoCorsi[UNIVOCO]),ElencoCorsi[UNIVOCO],0),2),0)","v":0},{"$f":"IFERROR(INDEX(ElencoCorsi[],MATCH(SUMPRODUCT((ElencoCorsi[GIORNO]=ProgrammaDelCorso[[#Headers],[MARTEDÌ]])*(ROUNDDOWN($B34,10)>=ROUNDDOWN(ElencoCorsi[ORA INIZIO],10))*($B34<=ElencoCorsi[ORA FINE]),ElencoCorsi[UNIVOCO]),ElencoCorsi[UNIVOCO],0),2),0)","v":0},{"$f":"IFERROR(INDEX(ElencoCorsi[],MATCH(SUMPRODUCT((ElencoCorsi[GIORNO]=ProgrammaDelCorso[[#Headers],[MERCOLEDÌ]])*(ROUNDDOWN($B34,10)>=ROUNDDOWN(ElencoCorsi[ORA INIZIO],10))*($B34<=ElencoCorsi[ORA FINE]),ElencoCorsi[UNIVOCO]),ElencoCorsi[UNIVOCO],0),2),0)","v":0},{"$f":"IFERROR(INDEX(ElencoCorsi[],MATCH(SUMPRODUCT((ElencoCorsi[GIORNO]=ProgrammaDelCorso[[#Headers],[GIOVEDÌ]])*(ROUNDDOWN($B34,10)>=ROUNDDOWN(ElencoCorsi[ORA INIZIO],10))*($B34<=ElencoCorsi[ORA FINE]),ElencoCorsi[UNIVOCO]),ElencoCorsi[UNIVOCO],0),2),0)","v":0},{"$f":"IFERROR(INDEX(ElencoCorsi[],MATCH(SUMPRODUCT((ElencoCorsi[GIORNO]=ProgrammaDelCorso[[#Headers],[VENERDÌ]])*(ROUNDDOWN($B34,10)>=ROUNDDOWN(ElencoCorsi[ORA INIZIO],10))*($B34<=ElencoCorsi[ORA FINE]),ElencoCorsi[UNIVOCO]),ElencoCorsi[UNIVOCO],0),2),0)","v":0},{"$f":"IFERROR(INDEX(ElencoCorsi[],MATCH(SUMPRODUCT((ElencoCorsi[GIORNO]=ProgrammaDelCorso[[#Headers],[SABATO]])*(ROUNDDOWN($B34,10)>=ROUNDDOWN(ElencoCorsi[ORA INIZIO],10))*($B34<=ElencoCorsi[ORA FINE]),ElencoCorsi[UNIVOCO]),ElencoCorsi[UNIVOCO],0),2),0)","v":0}]
[null,"15:45:00",{"$f":"IFERROR(INDEX(ElencoCorsi[],MATCH(SUMPRODUCT((ElencoCorsi[GIORNO]=ProgrammaDelCorso[[#Headers],[DOMENICA]])*(ROUNDDOWN($B35,10)>=ROUNDDOWN(ElencoCorsi[ORA INIZIO],10))*($B35<=ElencoCorsi[ORA FINE]),ElencoCorsi[UNIVOCO]),ElencoCorsi[UNIVOCO],0),2),0)","v":0},{"$f":"IFERROR(INDEX(ElencoCorsi[],MATCH(SUMPRODUCT((ElencoCorsi[GIORNO]=ProgrammaDelCorso[[#Headers],[LUNEDÌ]])*(ROUNDDOWN($B35,10)>=ROUNDDOWN(ElencoCorsi[ORA INIZIO],10))*($B35<=ElencoCorsi[ORA FINE]),ElencoCorsi[UNIVOCO]),ElencoCorsi[UNIVOCO],0),2),0)","v":0},{"$f":"IFERROR(INDEX(ElencoCorsi[],MATCH(SUMPRODUCT((ElencoCorsi[GIORNO]=ProgrammaDelCorso[[#Headers],[MARTEDÌ]])*(ROUNDDOWN($B35,10)>=ROUNDDOWN(ElencoCorsi[ORA INIZIO],10))*($B35<=ElencoCorsi[ORA FINE]),ElencoCorsi[UNIVOCO]),ElencoCorsi[UNIVOCO],0),2),0)","v":0},{"$f":"IFERROR(INDEX(ElencoCorsi[],MATCH(SUMPRODUCT((ElencoCorsi[GIORNO]=ProgrammaDelCorso[[#Headers],[MERCOLEDÌ]])*(ROUNDDOWN($B35,10)>=ROUNDDOWN(ElencoCorsi[ORA INIZIO],10))*($B35<=ElencoCorsi[ORA FINE]),ElencoCorsi[UNIVOCO]),ElencoCorsi[UNIVOCO],0),2),0)","v":0},{"$f":"IFERROR(INDEX(ElencoCorsi[],MATCH(SUMPRODUCT((ElencoCorsi[GIORNO]=ProgrammaDelCorso[[#Headers],[GIOVEDÌ]])*(ROUNDDOWN($B35,10)>=ROUNDDOWN(ElencoCorsi[ORA INIZIO],10))*($B35<=ElencoCorsi[ORA FINE]),ElencoCorsi[UNIVOCO]),ElencoCorsi[UNIVOCO],0),2),0)","v":0},{"$f":"IFERROR(INDEX(ElencoCorsi[],MATCH(SUMPRODUCT((ElencoCorsi[GIORNO]=ProgrammaDelCorso[[#Headers],[VENERDÌ]])*(ROUNDDOWN($B35,10)>=ROUNDDOWN(ElencoCorsi[ORA INIZIO],10))*($B35<=ElencoCorsi[ORA FINE]),ElencoCorsi[UNIVOCO]),ElencoCorsi[UNIVOCO],0),2),0)","v":0},{"$f":"IFERROR(INDEX(ElencoCorsi[],MATCH(SUMPRODUCT((ElencoCorsi[GIORNO]=ProgrammaDelCorso[[#Headers],[SABATO]])*(ROUNDDOWN($B35,10)>=ROUNDDOWN(ElencoCorsi[ORA INIZIO],10))*($B35<=ElencoCorsi[ORA FINE]),ElencoCorsi[UNIVOCO]),ElencoCorsi[UNIVOCO],0),2),0)","v":0}]
[null,"16:00:00",{"$f":"IFERROR(INDEX(ElencoCorsi[],MATCH(SUMPRODUCT((ElencoCorsi[GIORNO]=ProgrammaDelCorso[[#Headers],[DOMENICA]])*(ROUNDDOWN($B36,10)>=ROUNDDOWN(ElencoCorsi[ORA INIZIO],10))*($B36<=ElencoCorsi[ORA FINE]),ElencoCorsi[UNIVOCO]),ElencoCorsi[UNIVOCO],0),2),0)","v":0},{"$f":"IFERROR(INDEX(ElencoCorsi[],MATCH(SUMPRODUCT((ElencoCorsi[GIORNO]=ProgrammaDelCorso[[#Headers],[LUNEDÌ]])*(ROUNDDOWN($B36,10)>=ROUNDDOWN(ElencoCorsi[ORA INIZIO],10))*($B36<=ElencoCorsi[ORA FINE]),ElencoCorsi[UNIVOCO]),ElencoCorsi[UNIVOCO],0),2),0)","v":"AO-111"},{"$f":"IFERROR(INDEX(ElencoCorsi[],MATCH(SUMPRODUCT((ElencoCorsi[GIORNO]=ProgrammaDelCorso[[#Headers],[MARTEDÌ]])*(ROUNDDOWN($B36,10)>=ROUNDDOWN(ElencoCorsi[ORA INIZIO],10))*($B36<=ElencoCorsi[ORA FINE]),ElencoCorsi[UNIVOCO]),ElencoCorsi[UNIVOCO],0),2),0)","v":0},{"$f":"IFERROR(INDEX(ElencoCorsi[],MATCH(SUMPRODUCT((ElencoCorsi[GIORNO]=ProgrammaDelCorso[[#Headers],[MERCOLEDÌ]])*(ROUNDDOWN($B36,10)>=ROUNDDOWN(ElencoCorsi[ORA INIZIO],10))*($B36<=ElencoCorsi[ORA FINE]),ElencoCorsi[UNIVOCO]),ElencoCorsi[UNIVOCO],0),2),0)","v":0},{"$f":"IFERROR(INDEX(ElencoCorsi[],MATCH(SUMPRODUCT((ElencoCorsi[GIORNO]=ProgrammaDelCorso[[#Headers],[GIOVEDÌ]])*(ROUNDDOWN($B36,10)>=ROUNDDOWN(ElencoCorsi[ORA INIZIO],10))*($B36<=ElencoCorsi[ORA FINE]),ElencoCorsi[UNIVOCO]),ElencoCorsi[UNIVOCO],0),2),0)","v":0},{"$f":"IFERROR(INDEX(ElencoCorsi[],MATCH(SUMPRODUCT((ElencoCorsi[GIORNO]=ProgrammaDelCorso[[#Headers],[VENERDÌ]])*(ROUNDDOWN($B36,10)>=ROUNDDOWN(ElencoCorsi[ORA INIZIO],10))*($B36<=ElencoCorsi[ORA FINE]),ElencoCorsi[UNIVOCO]),ElencoCorsi[UNIVOCO],0),2),0)","v":0},{"$f":"IFERROR(INDEX(ElencoCorsi[],MATCH(SUMPRODUCT((ElencoCorsi[GIORNO]=ProgrammaDelCorso[[#Headers],[SABATO]])*(ROUNDDOWN($B36,10)>=ROUNDDOWN(ElencoCorsi[ORA INIZIO],10))*($B36<=ElencoCorsi[ORA FINE]),ElencoCorsi[UNIVOCO]),ElencoCorsi[UNIVOCO],0),2),0)","v":0}]
[null,{"$f":"B36+Incremento","v":"16:15:00"},{"$f":"IFERROR(INDEX(ElencoCorsi[],MATCH(SUMPRODUCT((ElencoCorsi[GIORNO]=ProgrammaDelCorso[[#Headers],[DOMENICA]])*(ROUNDDOWN($B37,10)>=ROUNDDOWN(ElencoCorsi[ORA INIZIO],10))*($B37<=ElencoCorsi[ORA FINE]),ElencoCorsi[UNIVOCO]),ElencoCorsi[UNIVOCO],0),2),0)","v":0},{"$f":"IFERROR(INDEX(ElencoCorsi[],MATCH(SUMPRODUCT((ElencoCorsi[GIORNO]=ProgrammaDelCorso[[#Headers],[LUNEDÌ]])*(ROUNDDOWN($B37,10)>=ROUNDDOWN(ElencoCorsi[ORA INIZIO],10))*($B37<=ElencoCorsi[ORA FINE]),ElencoCorsi[UNIVOCO]),ElencoCorsi[UNIVOCO],0),2),0)","v":"AO-111"},{"$f":"IFERROR(INDEX(ElencoCorsi[],MATCH(SUMPRODUCT((ElencoCorsi[GIORNO]=ProgrammaDelCorso[[#Headers],[MARTEDÌ]])*(ROUNDDOWN($B37,10)>=ROUNDDOWN(ElencoCorsi[ORA INIZIO],10))*($B37<=ElencoCorsi[ORA FINE]),ElencoCorsi[UNIVOCO]),ElencoCorsi[UNIVOCO],0),2),0)","v":0},{"$f":"IFERROR(INDEX(ElencoCorsi[],MATCH(SUMPRODUCT((ElencoCorsi[GIORNO]=ProgrammaDelCorso[[#Headers],[MERCOLEDÌ]])*(ROUNDDOWN($B37,10)>=ROUNDDOWN(ElencoCorsi[ORA INIZIO],10))*($B37<=ElencoCorsi[ORA FINE]),ElencoCorsi[UNIVOCO]),ElencoCorsi[UNIVOCO],0),2),0)","v":0},{"$f":"IFERROR(INDEX(ElencoCorsi[],MATCH(SUMPRODUCT((ElencoCorsi[GIORNO]=ProgrammaDelCorso[[#Headers],[GIOVEDÌ]])*(ROUNDDOWN($B37,10)>=ROUNDDOWN(ElencoCorsi[ORA INIZIO],10))*($B37<=ElencoCorsi[ORA FINE]),ElencoCorsi[UNIVOCO]),ElencoCorsi[UNIVOCO],0),2),0)","v":0},{"$f":"IFERROR(INDEX(ElencoCorsi[],MATCH(SUMPRODUCT((ElencoCorsi[GIORNO]=ProgrammaDelCorso[[#Headers],[VENERDÌ]])*(ROUNDDOWN($B37,10)>=ROUNDDOWN(ElencoCorsi[ORA INIZIO],10))*($B37<=ElencoCorsi[ORA FINE]),ElencoCorsi[UNIVOCO]),ElencoCorsi[UNIVOCO],0),2),0)","v":0},{"$f":"IFERROR(INDEX(ElencoCorsi[],MATCH(SUMPRODUCT((ElencoCorsi[GIORNO]=ProgrammaDelCorso[[#Headers],[SABATO]])*(ROUNDDOWN($B37,10)>=ROUNDDOWN(ElencoCorsi[ORA INIZIO],10))*($B37<=ElencoCorsi[ORA FINE]),ElencoCorsi[UNIVOCO]),ElencoCorsi[UNIVOCO],0),2),0)","v":0}]
[null,"16:30:00",{"$f":"IFERROR(INDEX(ElencoCorsi[],MATCH(SUMPRODUCT((ElencoCorsi[GIORNO]=ProgrammaDelCorso[[#Headers],[DOMENICA]])*(ROUNDDOWN($B38,10)>=ROUNDDOWN(ElencoCorsi[ORA INIZIO],10))*($B38<=ElencoCorsi[ORA FINE]),ElencoCorsi[UNIVOCO]),ElencoCorsi[UNIVOCO],0),2),0)","v":0},{"$f":"IFERROR(INDEX(ElencoCorsi[],MATCH(SUMPRODUCT((ElencoCorsi[GIORNO]=ProgrammaDelCorso[[#Headers],[LUNEDÌ]])*(ROUNDDOWN($B38,10)>=ROUNDDOWN(ElencoCorsi[ORA INIZIO],10))*($B38<=ElencoCorsi[ORA FINE]),ElencoCorsi[UNIVOCO]),ElencoCorsi[UNIVOCO],0),2),0)","v":"AO-111"},{"$f":"IFERROR(INDEX(ElencoCorsi[],MATCH(SUMPRODUCT((ElencoCorsi[GIORNO]=ProgrammaDelCorso[[#Headers],[MARTEDÌ]])*(ROUNDDOWN($B38,10)>=ROUNDDOWN(ElencoCorsi[ORA INIZIO],10))*($B38<=ElencoCorsi[ORA FINE]),ElencoCorsi[UNIVOCO]),ElencoCorsi[UNIVOCO],0),2),0)","v":0},{"$f":"IFERROR(INDEX(ElencoCorsi[],MATCH(SUMPRODUCT((ElencoCorsi[GIORNO]=ProgrammaDelCorso[[#Headers],[MERCOLEDÌ]])*(ROUNDDOWN($B38,10)>=ROUNDDOWN(ElencoCorsi[ORA INIZIO],10))*($B38<=ElencoCorsi[ORA FINE]),ElencoCorsi[UNIVOCO]),ElencoCorsi[UNIVOCO],0),2),0)","v":0},{"$f":"IFERROR(INDEX(ElencoCorsi[],MATCH(SUMPRODUCT((ElencoCorsi[GIORNO]=ProgrammaDelCorso[[#Headers],[GIOVEDÌ]])*(ROUNDDOWN($B38,10)>=ROUNDDOWN(ElencoCorsi[ORA INIZIO],10))*($B38<=ElencoCorsi[ORA FINE]),ElencoCorsi[UNIVOCO]),ElencoCorsi[UNIVOCO],0),2),0)","v":0},{"$f":"IFERROR(INDEX(ElencoCorsi[],MATCH(SUMPRODUCT((ElencoCorsi[GIORNO]=ProgrammaDelCorso[[#Headers],[VENERDÌ]])*(ROUNDDOWN($B38,10)>=ROUNDDOWN(ElencoCorsi[ORA INIZIO],10))*($B38<=ElencoCorsi[ORA FINE]),ElencoCorsi[UNIVOCO]),ElencoCorsi[UNIVOCO],0),2),0)","v":0},{"$f":"IFERROR(INDEX(ElencoCorsi[],MATCH(SUMPRODUCT((ElencoCorsi[GIORNO]=ProgrammaDelCorso[[#Headers],[SABATO]])*(ROUNDDOWN($B38,10)>=ROUNDDOWN(ElencoCorsi[ORA INIZIO],10))*($B38<=ElencoCorsi[ORA FINE]),ElencoCorsi[UNIVOCO]),ElencoCorsi[UNIVOCO],0),2),0)","v":0}]
[null,"16:45:00",{"$f":"IFERROR(INDEX(ElencoCorsi[],MATCH(SUMPRODUCT((ElencoCorsi[GIORNO]=ProgrammaDelCorso[[#Headers],[DOMENICA]])*(ROUNDDOWN($B39,10)>=ROUNDDOWN(ElencoCorsi[ORA INIZIO],10))*($B39<=ElencoCorsi[ORA FINE]),ElencoCorsi[UNIVOCO]),ElencoCorsi[UNIVOCO],0),2),0)","v":0},{"$f":"IFERROR(INDEX(ElencoCorsi[],MATCH(SUMPRODUCT((ElencoCorsi[GIORNO]=ProgrammaDelCorso[[#Headers],[LUNEDÌ]])*(ROUNDDOWN($B39,10)>=ROUNDDOWN(ElencoCorsi[ORA INIZIO],10))*($B39<=ElencoCorsi[ORA FINE]),ElencoCorsi[UNIVOCO]),ElencoCorsi[UNIVOCO],0),2),0)","v":"AO-111"},{"$f":"IFERROR(INDEX(ElencoCorsi[],MATCH(SUMPRODUCT((ElencoCorsi[GIORNO]=ProgrammaDelCorso[[#Headers],[MARTEDÌ]])*(ROUNDDOWN($B39,10)>=ROUNDDOWN(ElencoCorsi[ORA INIZIO],10))*($B39<=ElencoCorsi[ORA FINE]),ElencoCorsi[UNIVOCO]),ElencoCorsi[UNIVOCO],0),2),0)","v":0},{"$f":"IFERROR(INDEX(ElencoCorsi[],MATCH(SUMPRODUCT((ElencoCorsi[GIORNO]=ProgrammaDelCorso[[#Headers],[MERCOLEDÌ]])*(ROUNDDOWN($B39,10)>=ROUNDDOWN(ElencoCorsi[ORA INIZIO],10))*($B39<=ElencoCorsi[ORA FINE]),ElencoCorsi[UNIVOCO]),ElencoCorsi[UNIVOCO],0),2),0)","v":0},{"$f":"IFERROR(INDEX(ElencoCorsi[],MATCH(SUMPRODUCT((ElencoCorsi[GIORNO]=ProgrammaDelCorso[[#Headers],[GIOVEDÌ]])*(ROUNDDOWN($B39,10)>=ROUNDDOWN(ElencoCorsi[ORA INIZIO],10))*($B39<=ElencoCorsi[ORA FINE]),ElencoCorsi[UNIVOCO]),ElencoCorsi[UNIVOCO],0),2),0)","v":0},{"$f":"IFERROR(INDEX(ElencoCorsi[],MATCH(SUMPRODUCT((ElencoCorsi[GIORNO]=ProgrammaDelCorso[[#Headers],[VENERDÌ]])*(ROUNDDOWN($B39,10)>=ROUNDDOWN(ElencoCorsi[ORA INIZIO],10))*($B39<=ElencoCorsi[ORA FINE]),ElencoCorsi[UNIVOCO]),ElencoCorsi[UNIVOCO],0),2),0)","v":0},{"$f":"IFERROR(INDEX(ElencoCorsi[],MATCH(SUMPRODUCT((ElencoCorsi[GIORNO]=ProgrammaDelCorso[[#Headers],[SABATO]])*(ROUNDDOWN($B39,10)>=ROUNDDOWN(ElencoCorsi[ORA INIZIO],10))*($B39<=ElencoCorsi[ORA FINE]),ElencoCorsi[UNIVOCO]),ElencoCorsi[UNIVOCO],0),2),0)","v":0}]
[null,"17:00:00",{"$f":"IFERROR(INDEX(ElencoCorsi[],MATCH(SUMPRODUCT((ElencoCorsi[GIORNO]=ProgrammaDelCorso[[#Headers],[DOMENICA]])*(ROUNDDOWN($B40,10)>=ROUNDDOWN(ElencoCorsi[ORA INIZIO],10))*($B40<=ElencoCorsi[ORA FINE]),ElencoCorsi[UNIVOCO]),ElencoCorsi[UNIVOCO],0),2),0)","v":0},{"$f":"IFERROR(INDEX(ElencoCorsi[],MATCH(SUMPRODUCT((ElencoCorsi[GIORNO]=ProgrammaDelCorso[[#Headers],[LUNEDÌ]])*(ROUNDDOWN($B40,10)>=ROUNDDOWN(ElencoCorsi[ORA INIZIO],10))*($B40<=ElencoCorsi[ORA FINE]),ElencoCorsi[UNIVOCO]),ElencoCorsi[UNIVOCO],0),2),0)","v":"AO-111"},{"$f":"IFERROR(INDEX(ElencoCorsi[],MATCH(SUMPRODUCT((ElencoCorsi[GIORNO]=ProgrammaDelCorso[[#Headers],[MARTEDÌ]])*(ROUNDDOWN($B40,10)>=ROUNDDOWN(ElencoCorsi[ORA INIZIO],10))*($B40<=ElencoCorsi[ORA FINE]),ElencoCorsi[UNIVOCO]),ElencoCorsi[UNIVOCO],0),2),0)","v":0},{"$f":"IFERROR(INDEX(ElencoCorsi[],MATCH(SUMPRODUCT((ElencoCorsi[GIORNO]=ProgrammaDelCorso[[#Headers],[MERCOLEDÌ]])*(ROUNDDOWN($B40,10)>=ROUNDDOWN(ElencoCorsi[ORA INIZIO],10))*($B40<=ElencoCorsi[ORA FINE]),ElencoCorsi[UNIVOCO]),ElencoCorsi[UNIVOCO],0),2),0)","v":0},{"$f":"IFERROR(INDEX(ElencoCorsi[],MATCH(SUMPRODUCT((ElencoCorsi[GIORNO]=ProgrammaDelCorso[[#Headers],[GIOVEDÌ]])*(ROUNDDOWN($B40,10)>=ROUNDDOWN(ElencoCorsi[ORA INIZIO],10))*($B40<=ElencoCorsi[ORA FINE]),ElencoCorsi[UNIVOCO]),ElencoCorsi[UNIVOCO],0),2),0)","v":0},{"$f":"IFERROR(INDEX(ElencoCorsi[],MATCH(SUMPRODUCT((ElencoCorsi[GIORNO]=ProgrammaDelCorso[[#Headers],[VENERDÌ]])*(ROUNDDOWN($B40,10)>=ROUNDDOWN(ElencoCorsi[ORA INIZIO],10))*($B40<=ElencoCorsi[ORA FINE]),ElencoCorsi[UNIVOCO]),ElencoCorsi[UNIVOCO],0),2),0)","v":0},{"$f":"IFERROR(INDEX(ElencoCorsi[],MATCH(SUMPRODUCT((ElencoCorsi[GIORNO]=ProgrammaDelCorso[[#Headers],[SABATO]])*(ROUNDDOWN($B40,10)>=ROUNDDOWN(ElencoCorsi[ORA INIZIO],10))*($B40<=ElencoCorsi[ORA FINE]),ElencoCorsi[UNIVOCO]),ElencoCorsi[UNIVOCO],0),2),0)","v":0}]
[null,"17:15:00",{"$f":"IFERROR(INDEX(ElencoCorsi[],MATCH(SUMPRODUCT((ElencoCorsi[GIORNO]=ProgrammaDelCorso[[#Headers],[DOMENICA]])*(ROUNDDOWN($B41,10)>=ROUNDDOWN(ElencoCorsi[ORA INIZIO],10))*($B41<=ElencoCorsi[ORA FINE]),ElencoCorsi[UNIVOCO]),ElencoCorsi[UNIVOCO],0),2),0)","v":0},{"$f":"IFERROR(INDEX(ElencoCorsi[],MATCH(SUMPRODUCT((ElencoCorsi[GIORNO]=ProgrammaDelCorso[[#Headers],[LUNEDÌ]])*(ROUNDDOWN($B41,10)>=ROUNDDOWN(ElencoCorsi[ORA INIZIO],10))*($B41<=ElencoCorsi[ORA FINE]),ElencoCorsi[UNIVOCO]),ElencoCorsi[UNIVOCO],0),2),0)","v":0},{"$f":"IFERROR(INDEX(ElencoCorsi[],MATCH(SUMPRODUCT((ElencoCorsi[GIORNO]=ProgrammaDelCorso[[#Headers],[MARTEDÌ]])*(ROUNDDOWN($B41,10)>=ROUNDDOWN(ElencoCorsi[ORA INIZIO],10))*($B41<=ElencoCorsi[ORA FINE]),ElencoCorsi[UNIVOCO]),ElencoCorsi[UNIVOCO],0),2),0)","v":0},{"$f":"IFERROR(INDEX(ElencoCorsi[],MATCH(SUMPRODUCT((ElencoCorsi[GIORNO]=ProgrammaDelCorso[[#Headers],[MERCOLEDÌ]])*(ROUNDDOWN($B41,10)>=ROUNDDOWN(ElencoCorsi[ORA INIZIO],10))*($B41<=ElencoCorsi[ORA FINE]),ElencoCorsi[UNIVOCO]),ElencoCorsi[UNIVOCO],0),2),0)","v":0},{"$f":"IFERROR(INDEX(ElencoCorsi[],MATCH(SUMPRODUCT((ElencoCorsi[GIORNO]=ProgrammaDelCorso[[#Headers],[GIOVEDÌ]])*(ROUNDDOWN($B41,10)>=ROUNDDOWN(ElencoCorsi[ORA INIZIO],10))*($B41<=ElencoCorsi[ORA FINE]),ElencoCorsi[UNIVOCO]),ElencoCorsi[UNIVOCO],0),2),0)","v":0},{"$f":"IFERROR(INDEX(ElencoCorsi[],MATCH(SUMPRODUCT((ElencoCorsi[GIORNO]=ProgrammaDelCorso[[#Headers],[VENERDÌ]])*(ROUNDDOWN($B41,10)>=ROUNDDOWN(ElencoCorsi[ORA INIZIO],10))*($B41<=ElencoCorsi[ORA FINE]),ElencoCorsi[UNIVOCO]),ElencoCorsi[UNIVOCO],0),2),0)","v":0},{"$f":"IFERROR(INDEX(ElencoCorsi[],MATCH(SUMPRODUCT((ElencoCorsi[GIORNO]=ProgrammaDelCorso[[#Headers],[SABATO]])*(ROUNDDOWN($B41,10)>=ROUNDDOWN(ElencoCorsi[ORA INIZIO],10))*($B41<=ElencoCorsi[ORA FINE]),ElencoCorsi[UNIVOCO]),ElencoCorsi[UNIVOCO],0),2),0)","v":0}]
[null,"17:30:00",{"$f":"IFERROR(INDEX(ElencoCorsi[],MATCH(SUMPRODUCT((ElencoCorsi[GIORNO]=ProgrammaDelCorso[[#Headers],[DOMENICA]])*(ROUNDDOWN($B42,10)>=ROUNDDOWN(ElencoCorsi[ORA INIZIO],10))*($B42<=ElencoCorsi[ORA FINE]),ElencoCorsi[UNIVOCO]),ElencoCorsi[UNIVOCO],0),2),0)","v":0},{"$f":"IFERROR(INDEX(ElencoCorsi[],MATCH(SUMPRODUCT((ElencoCorsi[GIORNO]=ProgrammaDelCorso[[#Headers],[LUNEDÌ]])*(ROUNDDOWN($B42,10)>=ROUNDDOWN(ElencoCorsi[ORA INIZIO],10))*($B42<=ElencoCorsi[ORA FINE]),ElencoCorsi[UNIVOCO]),ElencoCorsi[UNIVOCO],0),2),0)","v":0},{"$f":"IFERROR(INDEX(ElencoCorsi[],MATCH(SUMPRODUCT((ElencoCorsi[GIORNO]=ProgrammaDelCorso[[#Headers],[MARTEDÌ]])*(ROUNDDOWN($B42,10)>=ROUNDDOWN(ElencoCorsi[ORA INIZIO],10))*($B42<=ElencoCorsi[ORA FINE]),ElencoCorsi[UNIVOCO]),ElencoCorsi[UNIVOCO],0),2),0)","v":0},{"$f":"IFERROR(INDEX(ElencoCorsi[],MATCH(SUMPRODUCT((ElencoCorsi[GIORNO]=ProgrammaDelCorso[[#Headers],[MERCOLEDÌ]])*(ROUNDDOWN($B42,10)>=ROUNDDOWN(ElencoCorsi[ORA INIZIO],10))*($B42<=ElencoCorsi[ORA FINE]),ElencoCorsi[UNIVOCO]),ElencoCorsi[UNIVOCO],0),2),0)","v":0},{"$f":"IFERROR(INDEX(ElencoCorsi[],MATCH(SUMPRODUCT((ElencoCorsi[GIORNO]=ProgrammaDelCorso[[#Headers],[GIOVEDÌ]])*(ROUNDDOWN($B42,10)>=ROUNDDOWN(ElencoCorsi[ORA INIZIO],10))*($B42<=ElencoCorsi[ORA FINE]),ElencoCorsi[UNIVOCO]),ElencoCorsi[UNIVOCO],0),2),0)","v":0},{"$f":"IFERROR(INDEX(ElencoCorsi[],MATCH(SUMPRODUCT((ElencoCorsi[GIORNO]=ProgrammaDelCorso[[#Headers],[VENERDÌ]])*(ROUNDDOWN($B42,10)>=ROUNDDOWN(ElencoCorsi[ORA INIZIO],10))*($B42<=ElencoCorsi[ORA FINE]),ElencoCorsi[UNIVOCO]),ElencoCorsi[UNIVOCO],0),2),0)","v":0},{"$f":"IFERROR(INDEX(ElencoCorsi[],MATCH(SUMPRODUCT((ElencoCorsi[GIORNO]=ProgrammaDelCorso[[#Headers],[SABATO]])*(ROUNDDOWN($B42,10)>=ROUNDDOWN(ElencoCorsi[ORA INIZIO],10))*($B42<=ElencoCorsi[ORA FINE]),ElencoCorsi[UNIVOCO]),ElencoCorsi[UNIVOCO],0),2),0)","v":0}]
[null,"17:45:00",{"$f":"IFERROR(INDEX(ElencoCorsi[],MATCH(SUMPRODUCT((ElencoCorsi[GIORNO]=ProgrammaDelCorso[[#Headers],[DOMENICA]])*(ROUNDDOWN($B43,10)>=ROUNDDOWN(ElencoCorsi[ORA INIZIO],10))*($B43<=ElencoCorsi[ORA FINE]),ElencoCorsi[UNIVOCO]),ElencoCorsi[UNIVOCO],0),2),0)","v":0},{"$f":"IFERROR(INDEX(ElencoCorsi[],MATCH(SUMPRODUCT((ElencoCorsi[GIORNO]=ProgrammaDelCorso[[#Headers],[LUNEDÌ]])*(ROUNDDOWN($B43,10)>=ROUNDDOWN(ElencoCorsi[ORA INIZIO],10))*($B43<=ElencoCorsi[ORA FINE]),ElencoCorsi[UNIVOCO]),ElencoCorsi[UNIVOCO],0),2),0)","v":0},{"$f":"IFERROR(INDEX(ElencoCorsi[],MATCH(SUMPRODUCT((ElencoCorsi[GIORNO]=ProgrammaDelCorso[[#Headers],[MARTEDÌ]])*(ROUNDDOWN($B43,10)>=ROUNDDOWN(ElencoCorsi[ORA INIZIO],10))*($B43<=ElencoCorsi[ORA FINE]),ElencoCorsi[UNIVOCO]),ElencoCorsi[UNIVOCO],0),2),0)","v":0},{"$f":"IFERROR(INDEX(ElencoCorsi[],MATCH(SUMPRODUCT((ElencoCorsi[GIORNO]=ProgrammaDelCorso[[#Headers],[MERCOLEDÌ]])*(ROUNDDOWN($B43,10)>=ROUNDDOWN(ElencoCorsi[ORA INIZIO],10))*($B43<=ElencoCorsi[ORA FINE]),ElencoCorsi[UNIVOCO]),ElencoCorsi[UNIVOCO],0),2),0)","v":0},{"$f":"IFERROR(INDEX(ElencoCorsi[],MATCH(SUMPRODUCT((ElencoCorsi[GIORNO]=ProgrammaDelCorso[[#Headers],[GIOVEDÌ]])*(ROUNDDOWN($B43,10)>=ROUNDDOWN(ElencoCorsi[ORA INIZIO],10))*($B43<=ElencoCorsi[ORA FINE]),ElencoCorsi[UNIVOCO]),ElencoCorsi[UNIVOCO],0),2),0)","v":0},{"$f":"IFERROR(INDEX(ElencoCorsi[],MATCH(SUMPRODUCT((ElencoCorsi[GIORNO]=ProgrammaDelCorso[[#Headers],[VENERDÌ]])*(ROUNDDOWN($B43,10)>=ROUNDDOWN(ElencoCorsi[ORA INIZIO],10))*($B43<=ElencoCorsi[ORA FINE]),ElencoCorsi[UNIVOCO]),ElencoCorsi[UNIVOCO],0),2),0)","v":0},{"$f":"IFERROR(INDEX(ElencoCorsi[],MATCH(SUMPRODUCT((ElencoCorsi[GIORNO]=ProgrammaDelCorso[[#Headers],[SABATO]])*(ROUNDDOWN($B43,10)>=ROUNDDOWN(ElencoCorsi[ORA INIZIO],10))*($B43<=ElencoCorsi[ORA FINE]),ElencoCorsi[UNIVOCO]),ElencoCorsi[UNIVOCO],0),2),0)","v":0}]
[null,"18:00:00",{"$f":"IFERROR(INDEX(ElencoCorsi[],MATCH(SUMPRODUCT((ElencoCorsi[GIORNO]=ProgrammaDelCorso[[#Headers],[DOMENICA]])*(ROUNDDOWN($B44,10)>=ROUNDDOWN(ElencoCorsi[ORA INIZIO],10))*($B44<=ElencoCorsi[ORA FINE]),ElencoCorsi[UNIVOCO]),ElencoCorsi[UNIVOCO],0),2),0)","v":0},{"$f":"IFERROR(INDEX(ElencoCorsi[],MATCH(SUMPRODUCT((ElencoCorsi[GIORNO]=ProgrammaDelCorso[[#Headers],[LUNEDÌ]])*(ROUNDDOWN($B44,10)>=ROUNDDOWN(ElencoCorsi[ORA INIZIO],10))*($B44<=ElencoCorsi[ORA FINE]),ElencoCorsi[UNIVOCO]),ElencoCorsi[UNIVOCO],0),2),0)","v":0},{"$f":"IFERROR(INDEX(ElencoCorsi[],MATCH(SUMPRODUCT((ElencoCorsi[GIORNO]=ProgrammaDelCorso[[#Headers],[MARTEDÌ]])*(ROUNDDOWN($B44,10)>=ROUNDDOWN(ElencoCorsi[ORA INIZIO],10))*($B44<=ElencoCorsi[ORA FINE]),ElencoCorsi[UNIVOCO]),ElencoCorsi[UNIVOCO],0),2),0)","v":0},{"$f":"IFERROR(INDEX(ElencoCorsi[],MATCH(SUMPRODUCT((ElencoCorsi[GIORNO]=ProgrammaDelCorso[[#Headers],[MERCOLEDÌ]])*(ROUNDDOWN($B44,10)>=ROUNDDOWN(ElencoCorsi[ORA INIZIO],10))*($B44<=ElencoCorsi[ORA FINE]),ElencoCorsi[UNIVOCO]),ElencoCorsi[UNIVOCO],0),2),0)","v":0},{"$f":"IFERROR(INDEX(ElencoCorsi[],MATCH(SUMPRODUCT((ElencoCorsi[GIORNO]=ProgrammaDelCorso[[#Headers],[GIOVEDÌ]])*(ROUNDDOWN($B44,10)>=ROUNDDOWN(ElencoCorsi[ORA INIZIO],10))*($B44<=ElencoCorsi[ORA FINE]),ElencoCorsi[UNIVOCO]),ElencoCorsi[UNIVOCO],0),2),0)","v":0},{"$f":"IFERROR(INDEX(ElencoCorsi[],MATCH(SUMPRODUCT((ElencoCorsi[GIORNO]=ProgrammaDelCorso[[#Headers],[VENERDÌ]])*(ROUNDDOWN($B44,10)>=ROUNDDOWN(ElencoCorsi[ORA INIZIO],10))*($B44<=ElencoCorsi[ORA FINE]),ElencoCorsi[UNIVOCO]),ElencoCorsi[UNIVOCO],0),2),0)","v":0},{"$f":"IFERROR(INDEX(ElencoCorsi[],MATCH(SUMPRODUCT((ElencoCorsi[GIORNO]=ProgrammaDelCorso[[#Headers],[SABATO]])*(ROUNDDOWN($B44,10)>=ROUNDDOWN(ElencoCorsi[ORA INIZIO],10))*($B44<=ElencoCorsi[ORA FINE]),ElencoCorsi[UNIVOCO]),ElencoCorsi[UNIVOCO],0),2),0)","v":0}]
[null,"18:15:00",{"$f":"IFERROR(INDEX(ElencoCorsi[],MATCH(SUMPRODUCT((ElencoCorsi[GIORNO]=ProgrammaDelCorso[[#Headers],[DOMENICA]])*(ROUNDDOWN($B45,10)>=ROUNDDOWN(ElencoCorsi[ORA INIZIO],10))*($B45<=ElencoCorsi[ORA FINE]),ElencoCorsi[UNIVOCO]),ElencoCorsi[UNIVOCO],0),2),0)","v":0},{"$f":"IFERROR(INDEX(ElencoCorsi[],MATCH(SUMPRODUCT((ElencoCorsi[GIORNO]=ProgrammaDelCorso[[#Headers],[LUNEDÌ]])*(ROUNDDOWN($B45,10)>=ROUNDDOWN(ElencoCorsi[ORA INIZIO],10))*($B45<=ElencoCorsi[ORA FINE]),ElencoCorsi[UNIVOCO]),ElencoCorsi[UNIVOCO],0),2),0)","v":0},{"$f":"IFERROR(INDEX(ElencoCorsi[],MATCH(SUMPRODUCT((ElencoCorsi[GIORNO]=ProgrammaDelCorso[[#Headers],[MARTEDÌ]])*(ROUNDDOWN($B45,10)>=ROUNDDOWN(ElencoCorsi[ORA INIZIO],10))*($B45<=ElencoCorsi[ORA FINE]),ElencoCorsi[UNIVOCO]),ElencoCorsi[UNIVOCO],0),2),0)","v":0},{"$f":"IFERROR(INDEX(ElencoCorsi[],MATCH(SUMPRODUCT((ElencoCorsi[GIORNO]=ProgrammaDelCorso[[#Headers],[MERCOLEDÌ]])*(ROUNDDOWN($B45,10)>=ROUNDDOWN(ElencoCorsi[ORA INIZIO],10))*($B45<=ElencoCorsi[ORA FINE]),ElencoCorsi[UNIVOCO]),ElencoCorsi[UNIVOCO],0),2),0)","v":0},{"$f":"IFERROR(INDEX(ElencoCorsi[],MATCH(SUMPRODUCT((ElencoCorsi[GIORNO]=ProgrammaDelCorso[[#Headers],[GIOVEDÌ]])*(ROUNDDOWN($B45,10)>=ROUNDDOWN(ElencoCorsi[ORA INIZIO],10))*($B45<=ElencoCorsi[ORA FINE]),ElencoCorsi[UNIVOCO]),ElencoCorsi[UNIVOCO],0),2),0)","v":0},{"$f":"IFERROR(INDEX(ElencoCorsi[],MATCH(SUMPRODUCT((ElencoCorsi[GIORNO]=ProgrammaDelCorso[[#Headers],[VENERDÌ]])*(ROUNDDOWN($B45,10)>=ROUNDDOWN(ElencoCorsi[ORA INIZIO],10))*($B45<=ElencoCorsi[ORA FINE]),ElencoCorsi[UNIVOCO]),ElencoCorsi[UNIVOCO],0),2),0)","v":0},{"$f":"IFERROR(INDEX(ElencoCorsi[],MATCH(SUMPRODUCT((ElencoCorsi[GIORNO]=ProgrammaDelCorso[[#Headers],[SABATO]])*(ROUNDDOWN($B45,10)>=ROUNDDOWN(ElencoCorsi[ORA INIZIO],10))*($B45<=ElencoCorsi[ORA FINE]),ElencoCorsi[UNIVOCO]),ElencoCorsi[UNIVOCO],0),2),0)","v":0}]
[null,"18:30:00",{"$f":"IFERROR(INDEX(ElencoCorsi[],MATCH(SUMPRODUCT((ElencoCorsi[GIORNO]=ProgrammaDelCorso[[#Headers],[DOMENICA]])*(ROUNDDOWN($B46,10)>=ROUNDDOWN(ElencoCorsi[ORA INIZIO],10))*($B46<=ElencoCorsi[ORA FINE]),ElencoCorsi[UNIVOCO]),ElencoCorsi[UNIVOCO],0),2),0)","v":0},{"$f":"IFERROR(INDEX(ElencoCorsi[],MATCH(SUMPRODUCT((ElencoCorsi[GIORNO]=ProgrammaDelCorso[[#Headers],[LUNEDÌ]])*(ROUNDDOWN($B46,10)>=ROUNDDOWN(ElencoCorsi[ORA INIZIO],10))*($B46<=ElencoCorsi[ORA FINE]),ElencoCorsi[UNIVOCO]),ElencoCorsi[UNIVOCO],0),2),0)","v":0},{"$f":"IFERROR(INDEX(ElencoCorsi[],MATCH(SUMPRODUCT((ElencoCorsi[GIORNO]=ProgrammaDelCorso[[#Headers],[MARTEDÌ]])*(ROUNDDOWN($B46,10)>=ROUNDDOWN(ElencoCorsi[ORA INIZIO],10))*($B46<=ElencoCorsi[ORA FINE]),ElencoCorsi[UNIVOCO]),ElencoCorsi[UNIVOCO],0),2),0)","v":0},{"$f":"IFERROR(INDEX(ElencoCorsi[],MATCH(SUMPRODUCT((ElencoCorsi[GIORNO]=ProgrammaDelCorso[[#Headers],[MERCOLEDÌ]])*(ROUNDDOWN($B46,10)>=ROUNDDOWN(ElencoCorsi[ORA INIZIO],10))*($B46<=ElencoCorsi[ORA FINE]),ElencoCorsi[UNIVOCO]),ElencoCorsi[UNIVOCO],0),2),0)","v":0},{"$f":"IFERROR(INDEX(ElencoCorsi[],MATCH(SUMPRODUCT((ElencoCorsi[GIORNO]=ProgrammaDelCorso[[#Headers],[GIOVEDÌ]])*(ROUNDDOWN($B46,10)>=ROUNDDOWN(ElencoCorsi[ORA INIZIO],10))*($B46<=ElencoCorsi[ORA FINE]),ElencoCorsi[UNIVOCO]),ElencoCorsi[UNIVOCO],0),2),0)","v":0},{"$f":"IFERROR(INDEX(ElencoCorsi[],MATCH(SUMPRODUCT((ElencoCorsi[GIORNO]=ProgrammaDelCorso[[#Headers],[VENERDÌ]])*(ROUNDDOWN($B46,10)>=ROUNDDOWN(ElencoCorsi[ORA INIZIO],10))*($B46<=ElencoCorsi[ORA FINE]),ElencoCorsi[UNIVOCO]),ElencoCorsi[UNIVOCO],0),2),0)","v":0},{"$f":"IFERROR(INDEX(ElencoCorsi[],MATCH(SUMPRODUCT((ElencoCorsi[GIORNO]=ProgrammaDelCorso[[#Headers],[SABATO]])*(ROUNDDOWN($B46,10)>=ROUNDDOWN(ElencoCorsi[ORA INIZIO],10))*($B46<=ElencoCorsi[ORA FINE]),ElencoCorsi[UNIVOCO]),ElencoCorsi[UNIVOCO],0),2),0)","v":0}]
[null,"18:45:00",{"$f":"IFERROR(INDEX(ElencoCorsi[],MATCH(SUMPRODUCT((ElencoCorsi[GIORNO]=ProgrammaDelCorso[[#Headers],[DOMENICA]])*(ROUNDDOWN($B47,10)>=ROUNDDOWN(ElencoCorsi[ORA INIZIO],10))*($B47<=ElencoCorsi[ORA FINE]),ElencoCorsi[UNIVOCO]),ElencoCorsi[UNIVOCO],0),2),0)","v":0},{"$f":"IFERROR(INDEX(ElencoCorsi[],MATCH(SUMPRODUCT((ElencoCorsi[GIORNO]=ProgrammaDelCorso[[#Headers],[LUNEDÌ]])*(ROUNDDOWN($B47,10)>=ROUNDDOWN(ElencoCorsi[ORA INIZIO],10))*($B47<=ElencoCorsi[ORA FINE]),ElencoCorsi[UNIVOCO]),ElencoCorsi[UNIVOCO],0),2),0)","v":0},{"$f":"IFERROR(INDEX(ElencoCorsi[],MATCH(SUMPRODUCT((ElencoCorsi[GIORNO]=ProgrammaDelCorso[[#Headers],[MARTEDÌ]])*(ROUNDDOWN($B47,10)>=ROUNDDOWN(ElencoCorsi[ORA INIZIO],10))*($B47<=ElencoCorsi[ORA FINE]),ElencoCorsi[UNIVOCO]),ElencoCorsi[UNIVOCO],0),2),0)","v":0},{"$f":"IFERROR(INDEX(ElencoCorsi[],MATCH(SUMPRODUCT((ElencoCorsi[GIORNO]=ProgrammaDelCorso[[#Headers],[MERCOLEDÌ]])*(ROUNDDOWN($B47,10)>=ROUNDDOWN(ElencoCorsi[ORA INIZIO],10))*($B47<=ElencoCorsi[ORA FINE]),ElencoCorsi[UNIVOCO]),ElencoCorsi[UNIVOCO],0),2),0)","v":0},{"$f":"IFERROR(INDEX(ElencoCorsi[],MATCH(SUMPRODUCT((ElencoCorsi[GIORNO]=ProgrammaDelCorso[[#Headers],[GIOVEDÌ]])*(ROUNDDOWN($B47,10)>=ROUNDDOWN(ElencoCorsi[ORA INIZIO],10))*($B47<=ElencoCorsi[ORA FINE]),ElencoCorsi[UNIVOCO]),ElencoCorsi[UNIVOCO],0),2),0)","v":0},{"$f":"IFERROR(INDEX(ElencoCorsi[],MATCH(SUMPRODUCT((ElencoCorsi[GIORNO]=ProgrammaDelCorso[[#Headers],[VENERDÌ]])*(ROUNDDOWN($B47,10)>=ROUNDDOWN(ElencoCorsi[ORA INIZIO],10))*($B47<=ElencoCorsi[ORA FINE]),ElencoCorsi[UNIVOCO]),ElencoCorsi[UNIVOCO],0),2),0)","v":0},{"$f":"IFERROR(INDEX(ElencoCorsi[],MATCH(SUMPRODUCT((ElencoCorsi[GIORNO]=ProgrammaDelCorso[[#Headers],[SABATO]])*(ROUNDDOWN($B47,10)>=ROUNDDOWN(ElencoCorsi[ORA INIZIO],10))*($B47<=ElencoCorsi[ORA FINE]),ElencoCorsi[UNIVOCO]),ElencoCorsi[UNIVOCO],0),2),0)","v":0}]
[null,"19:00:00",{"$f":"IFERROR(INDEX(ElencoCorsi[],MATCH(SUMPRODUCT((ElencoCorsi[GIORNO]=ProgrammaDelCorso[[#Headers],[DOMENICA]])*(ROUNDDOWN($B48,10)>=ROUNDDOWN(ElencoCorsi[ORA INIZIO],10))*($B48<=ElencoCorsi[ORA FINE]),ElencoCorsi[UNIVOCO]),ElencoCorsi[UNIVOCO],0),2),0)","v":0},{"$f":"IFERROR(INDEX(ElencoCorsi[],MATCH(SUMPRODUCT((ElencoCorsi[GIORNO]=ProgrammaDelCorso[[#Headers],[LUNEDÌ]])*(ROUNDDOWN($B48,10)>=ROUNDDOWN(ElencoCorsi[ORA INIZIO],10))*($B48<=ElencoCorsi[ORA FINE]),ElencoCorsi[UNIVOCO]),ElencoCorsi[UNIVOCO],0),2),0)","v":0},{"$f":"IFERROR(INDEX(ElencoCorsi[],MATCH(SUMPRODUCT((ElencoCorsi[GIORNO]=ProgrammaDelCorso[[#Headers],[MARTEDÌ]])*(ROUNDDOWN($B48,10)>=ROUNDDOWN(ElencoCorsi[ORA INIZIO],10))*($B48<=ElencoCorsi[ORA FINE]),ElencoCorsi[UNIVOCO]),ElencoCorsi[UNIVOCO],0),2),0)","v":0},{"$f":"IFERROR(INDEX(ElencoCorsi[],MATCH(SUMPRODUCT((ElencoCorsi[GIORNO]=ProgrammaDelCorso[[#Headers],[MERCOLEDÌ]])*(ROUNDDOWN($B48,10)>=ROUNDDOWN(ElencoCorsi[ORA INIZIO],10))*($B48<=ElencoCorsi[ORA FINE]),ElencoCorsi[UNIVOCO]),ElencoCorsi[UNIVOCO],0),2),0)","v":0},{"$f":"IFERROR(INDEX(ElencoCorsi[],MATCH(SUMPRODUCT((ElencoCorsi[GIORNO]=ProgrammaDelCorso[[#Headers],[GIOVEDÌ]])*(ROUNDDOWN($B48,10)>=ROUNDDOWN(ElencoCorsi[ORA INIZIO],10))*($B48<=ElencoCorsi[ORA FINE]),ElencoCorsi[UNIVOCO]),ElencoCorsi[UNIVOCO],0),2),0)","v":0},{"$f":"IFERROR(INDEX(ElencoCorsi[],MATCH(SUMPRODUCT((ElencoCorsi[GIORNO]=ProgrammaDelCorso[[#Headers],[VENERDÌ]])*(ROUNDDOWN($B48,10)>=ROUNDDOWN(ElencoCorsi[ORA INIZIO],10))*($B48<=ElencoCorsi[ORA FINE]),ElencoCorsi[UNIVOCO]),ElencoCorsi[UNIVOCO],0),2),0)","v":0},{"$f":"IFERROR(INDEX(ElencoCorsi[],MATCH(SUMPRODUCT((ElencoCorsi[GIORNO]=ProgrammaDelCorso[[#Headers],[SABATO]])*(ROUNDDOWN($B48,10)>=ROUNDDOWN(ElencoCorsi[ORA INIZIO],10))*($B48<=ElencoCorsi[ORA FINE]),ElencoCorsi[UNIVOCO]),ElencoCorsi[UNIVOCO],0),2),0)","v":0}]
[null,"19:15:00",{"$f":"IFERROR(INDEX(ElencoCorsi[],MATCH(SUMPRODUCT((ElencoCorsi[GIORNO]=ProgrammaDelCorso[[#Headers],[DOMENICA]])*(ROUNDDOWN($B49,10)>=ROUNDDOWN(ElencoCorsi[ORA INIZIO],10))*($B49<=ElencoCorsi[ORA FINE]),ElencoCorsi[UNIVOCO]),ElencoCorsi[UNIVOCO],0),2),0)","v":0},{"$f":"IFERROR(INDEX(ElencoCorsi[],MATCH(SUMPRODUCT((ElencoCorsi[GIORNO]=ProgrammaDelCorso[[#Headers],[LUNEDÌ]])*(ROUNDDOWN($B49,10)>=ROUNDDOWN(ElencoCorsi[ORA INIZIO],10))*($B49<=ElencoCorsi[ORA FINE]),ElencoCorsi[UNIVOCO]),ElencoCorsi[UNIVOCO],0),2),0)","v":0},{"$f":"IFERROR(INDEX(ElencoCorsi[],MATCH(SUMPRODUCT((ElencoCorsi[GIORNO]=ProgrammaDelCorso[[#Headers],[MARTEDÌ]])*(ROUNDDOWN($B49,10)>=ROUNDDOWN(ElencoCorsi[ORA INIZIO],10))*($B49<=ElencoCorsi[ORA FINE]),ElencoCorsi[UNIVOCO]),ElencoCorsi[UNIVOCO],0),2),0)","v":0},{"$f":"IFERROR(INDEX(ElencoCorsi[],MATCH(SUMPRODUCT((ElencoCorsi[GIORNO]=ProgrammaDelCorso[[#Headers],[MERCOLEDÌ]])*(ROUNDDOWN($B49,10)>=ROUNDDOWN(ElencoCorsi[ORA INIZIO],10))*($B49<=ElencoCorsi[ORA FINE]),ElencoCorsi[UNIVOCO]),ElencoCorsi[UNIVOCO],0),2),0)","v":0},{"$f":"IFERROR(INDEX(ElencoCorsi[],MATCH(SUMPRODUCT((ElencoCorsi[GIORNO]=ProgrammaDelCorso[[#Headers],[GIOVEDÌ]])*(ROUNDDOWN($B49,10)>=ROUNDDOWN(ElencoCorsi[ORA INIZIO],10))*($B49<=ElencoCorsi[ORA FINE]),ElencoCorsi[UNIVOCO]),ElencoCorsi[UNIVOCO],0),2),0)","v":0},{"$f":"IFERROR(INDEX(ElencoCorsi[],MATCH(SUMPRODUCT((ElencoCorsi[GIORNO]=ProgrammaDelCorso[[#Headers],[VENERDÌ]])*(ROUNDDOWN($B49,10)>=ROUNDDOWN(ElencoCorsi[ORA INIZIO],10))*($B49<=ElencoCorsi[ORA FINE]),ElencoCorsi[UNIVOCO]),ElencoCorsi[UNIVOCO],0),2),0)","v":0},{"$f":"IFERROR(INDEX(ElencoCorsi[],MATCH(SUMPRODUCT((ElencoCorsi[GIORNO]=ProgrammaDelCorso[[#Headers],[SABATO]])*(ROUNDDOWN($B49,10)>=ROUNDDOWN(ElencoCorsi[ORA INIZIO],10))*($B49<=ElencoCorsi[ORA FINE]),ElencoCorsi[UNIVOCO]),ElencoCorsi[UNIVOCO],0),2),0)","v":0}]
[null,"19:30:00",{"$f":"IFERROR(INDEX(ElencoCorsi[],MATCH(SUMPRODUCT((ElencoCorsi[GIORNO]=ProgrammaDelCorso[[#Headers],[DOMENICA]])*(ROUNDDOWN($B50,10)>=ROUNDDOWN(ElencoCorsi[ORA INIZIO],10))*($B50<=ElencoCorsi[ORA FINE]),ElencoCorsi[UNIVOCO]),ElencoCorsi[UNIVOCO],0),2),0)","v":0},{"$f":"IFERROR(INDEX(ElencoCorsi[],MATCH(SUMPRODUCT((ElencoCorsi[GIORNO]=ProgrammaDelCorso[[#Headers],[LUNEDÌ]])*(ROUNDDOWN($B50,10)>=ROUNDDOWN(ElencoCorsi[ORA INIZIO],10))*($B50<=ElencoCorsi[ORA FINE]),ElencoCorsi[UNIVOCO]),ElencoCorsi[UNIVOCO],0),2),0)","v":0},{"$f":"IFERROR(INDEX(ElencoCorsi[],MATCH(SUMPRODUCT((ElencoCorsi[GIORNO]=ProgrammaDelCorso[[#Headers],[MARTEDÌ]])*(ROUNDDOWN($B50,10)>=ROUNDDOWN(ElencoCorsi[ORA INIZIO],10))*($B50<=ElencoCorsi[ORA FINE]),ElencoCorsi[UNIVOCO]),ElencoCorsi[UNIVOCO],0),2),0)","v":0},{"$f":"IFERROR(INDEX(ElencoCorsi[],MATCH(SUMPRODUCT((ElencoCorsi[GIORNO]=ProgrammaDelCorso[[#Headers],[MERCOLEDÌ]])*(ROUNDDOWN($B50,10)>=ROUNDDOWN(ElencoCorsi[ORA INIZIO],10))*($B50<=ElencoCorsi[ORA FINE]),ElencoCorsi[UNIVOCO]),ElencoCorsi[UNIVOCO],0),2),0)","v":0},{"$f":"IFERROR(INDEX(ElencoCorsi[],MATCH(SUMPRODUCT((ElencoCorsi[GIORNO]=ProgrammaDelCorso[[#Headers],[GIOVEDÌ]])*(ROUNDDOWN($B50,10)>=ROUNDDOWN(ElencoCorsi[ORA INIZIO],10))*($B50<=ElencoCorsi[ORA FINE]),ElencoCorsi[UNIVOCO]),ElencoCorsi[UNIVOCO],0),2),0)","v":0},{"$f":"IFERROR(INDEX(ElencoCorsi[],MATCH(SUMPRODUCT((ElencoCorsi[GIORNO]=ProgrammaDelCorso[[#Headers],[VENERDÌ]])*(ROUNDDOWN($B50,10)>=ROUNDDOWN(ElencoCorsi[ORA INIZIO],10))*($B50<=ElencoCorsi[ORA FINE]),ElencoCorsi[UNIVOCO]),ElencoCorsi[UNIVOCO],0),2),0)","v":0},{"$f":"IFERROR(INDEX(ElencoCorsi[],MATCH(SUMPRODUCT((ElencoCorsi[GIORNO]=ProgrammaDelCorso[[#Headers],[SABATO]])*(ROUNDDOWN($B50,10)>=ROUNDDOWN(ElencoCorsi[ORA INIZIO],10))*($B50<=ElencoCorsi[ORA FINE]),ElencoCorsi[UNIVOCO]),ElencoCorsi[UNIVOCO],0),2),0)","v":0}]
[null,"19:45:00",{"$f":"IFERROR(INDEX(ElencoCorsi[],MATCH(SUMPRODUCT((ElencoCorsi[GIORNO]=ProgrammaDelCorso[[#Headers],[DOMENICA]])*(ROUNDDOWN($B51,10)>=ROUNDDOWN(ElencoCorsi[ORA INIZIO],10))*($B51<=ElencoCorsi[ORA FINE]),ElencoCorsi[UNIVOCO]),ElencoCorsi[UNIVOCO],0),2),0)","v":0},{"$f":"IFERROR(INDEX(ElencoCorsi[],MATCH(SUMPRODUCT((ElencoCorsi[GIORNO]=ProgrammaDelCorso[[#Headers],[LUNEDÌ]])*(ROUNDDOWN($B51,10)>=ROUNDDOWN(ElencoCorsi[ORA INIZIO],10))*($B51<=ElencoCorsi[ORA FINE]),ElencoCorsi[UNIVOCO]),ElencoCorsi[UNIVOCO],0),2),0)","v":0},{"$f":"IFERROR(INDEX(ElencoCorsi[],MATCH(SUMPRODUCT((ElencoCorsi[GIORNO]=ProgrammaDelCorso[[#Headers],[MARTEDÌ]])*(ROUNDDOWN($B51,10)>=ROUNDDOWN(ElencoCorsi[ORA INIZIO],10))*($B51<=ElencoCorsi[ORA FINE]),ElencoCorsi[UNIVOCO]),ElencoCorsi[UNIVOCO],0),2),0)","v":0},{"$f":"IFERROR(INDEX(ElencoCorsi[],MATCH(SUMPRODUCT((ElencoCorsi[GIORNO]=ProgrammaDelCorso[[#Headers],[MERCOLEDÌ]])*(ROUNDDOWN($B51,10)>=ROUNDDOWN(ElencoCorsi[ORA INIZIO],10))*($B51<=ElencoCorsi[ORA FINE]),ElencoCorsi[UNIVOCO]),ElencoCorsi[UNIVOCO],0),2),0)","v":0},{"$f":"IFERROR(INDEX(ElencoCorsi[],MATCH(SUMPRODUCT((ElencoCorsi[GIORNO]=ProgrammaDelCorso[[#Headers],[GIOVEDÌ]])*(ROUNDDOWN($B51,10)>=ROUNDDOWN(ElencoCorsi[ORA INIZIO],10))*($B51<=ElencoCorsi[ORA FINE]),ElencoCorsi[UNIVOCO]),ElencoCorsi[UNIVOCO],0),2),0)","v":0},{"$f":"IFERROR(INDEX(ElencoCorsi[],MATCH(SUMPRODUCT((ElencoCorsi[GIORNO]=ProgrammaDelCorso[[#Headers],[VENERDÌ]])*(ROUNDDOWN($B51,10)>=ROUNDDOWN(ElencoCorsi[ORA INIZIO],10))*($B51<=ElencoCorsi[ORA FINE]),ElencoCorsi[UNIVOCO]),ElencoCorsi[UNIVOCO],0),2),0)","v":0},{"$f":"IFERROR(INDEX(ElencoCorsi[],MATCH(SUMPRODUCT((ElencoCorsi[GIORNO]=ProgrammaDelCorso[[#Headers],[SABATO]])*(ROUNDDOWN($B51,10)>=ROUNDDOWN(ElencoCorsi[ORA INIZIO],10))*($B51<=ElencoCorsi[ORA FINE]),ElencoCorsi[UNIVOCO]),ElencoCorsi[UNIVOCO],0),2),0)","v":0}]
[null,"20:00:00",{"$f":"IFERROR(INDEX(ElencoCorsi[],MATCH(SUMPRODUCT((ElencoCorsi[GIORNO]=ProgrammaDelCorso[[#Headers],[DOMENICA]])*(ROUNDDOWN($B52,10)>=ROUNDDOWN(ElencoCorsi[ORA INIZIO],10))*($B52<=ElencoCorsi[ORA FINE]),ElencoCorsi[UNIVOCO]),ElencoCorsi[UNIVOCO],0),2),0)","v":0},{"$f":"IFERROR(INDEX(ElencoCorsi[],MATCH(SUMPRODUCT((ElencoCorsi[GIORNO]=ProgrammaDelCorso[[#Headers],[LUNEDÌ]])*(ROUNDDOWN($B52,10)>=ROUNDDOWN(ElencoCorsi[ORA INIZIO],10))*($B52<=ElencoCorsi[ORA FINE]),ElencoCorsi[UNIVOCO]),ElencoCorsi[UNIVOCO],0),2),0)","v":0},{"$f":"IFERROR(INDEX(ElencoCorsi[],MATCH(SUMPRODUCT((ElencoCorsi[GIORNO]=ProgrammaDelCorso[[#Headers],[MARTEDÌ]])*(ROUNDDOWN($B52,10)>=ROUNDDOWN(ElencoCorsi[ORA INIZIO],10))*($B52<=ElencoCorsi[ORA FINE]),ElencoCorsi[UNIVOCO]),ElencoCorsi[UNIVOCO],0),2),0)","v":0},{"$f":"IFERROR(INDEX(ElencoCorsi[],MATCH(SUMPRODUCT((ElencoCorsi[GIORNO]=ProgrammaDelCorso[[#Headers],[MERCOLEDÌ]])*(ROUNDDOWN($B52,10)>=ROUNDDOWN(ElencoCorsi[ORA INIZIO],10))*($B52<=ElencoCorsi[ORA FINE]),ElencoCorsi[UNIVOCO]),ElencoCorsi[UNIVOCO],0),2),0)","v":0},{"$f":"IFERROR(INDEX(ElencoCorsi[],MATCH(SUMPRODUCT((ElencoCorsi[GIORNO]=ProgrammaDelCorso[[#Headers],[GIOVEDÌ]])*(ROUNDDOWN($B52,10)>=ROUNDDOWN(ElencoCorsi[ORA INIZIO],10))*($B52<=ElencoCorsi[ORA FINE]),ElencoCorsi[UNIVOCO]),ElencoCorsi[UNIVOCO],0),2),0)","v":0},{"$f":"IFERROR(INDEX(ElencoCorsi[],MATCH(SUMPRODUCT((ElencoCorsi[GIORNO]=ProgrammaDelCorso[[#Headers],[VENERDÌ]])*(ROUNDDOWN($B52,10)>=ROUNDDOWN(ElencoCorsi[ORA INIZIO],10))*($B52<=ElencoCorsi[ORA FINE]),ElencoCorsi[UNIVOCO]),ElencoCorsi[UNIVOCO],0),2),0)","v":0},{"$f":"IFERROR(INDEX(ElencoCorsi[],MATCH(SUMPRODUCT((ElencoCorsi[GIORNO]=ProgrammaDelCorso[[#Headers],[SABATO]])*(ROUNDDOWN($B52,10)>=ROUNDDOWN(ElencoCorsi[ORA INIZIO],10))*($B52<=ElencoCorsi[ORA FINE]),ElencoCorsi[UNIVOCO]),ElencoCorsi[UNIVOCO],0),2),0)","v":0}]
[null,"20:15:00",{"$f":"IFERROR(INDEX(ElencoCorsi[],MATCH(SUMPRODUCT((ElencoCorsi[GIORNO]=ProgrammaDelCorso[[#Headers],[DOMENICA]])*(ROUNDDOWN($B53,10)>=ROUNDDOWN(ElencoCorsi[ORA INIZIO],10))*($B53<=ElencoCorsi[ORA FINE]),ElencoCorsi[UNIVOCO]),ElencoCorsi[UNIVOCO],0),2),0)","v":0},{"$f":"IFERROR(INDEX(ElencoCorsi[],MATCH(SUMPRODUCT((ElencoCorsi[GIORNO]=ProgrammaDelCorso[[#Headers],[LUNEDÌ]])*(ROUNDDOWN($B53,10)>=ROUNDDOWN(ElencoCorsi[ORA INIZIO],10))*($B53<=ElencoCorsi[ORA FINE]),ElencoCorsi[UNIVOCO]),ElencoCorsi[UNIVOCO],0),2),0)","v":0},{"$f":"IFERROR(INDEX(ElencoCorsi[],MATCH(SUMPRODUCT((ElencoCorsi[GIORNO]=ProgrammaDelCorso[[#Headers],[MARTEDÌ]])*(ROUNDDOWN($B53,10)>=ROUNDDOWN(ElencoCorsi[ORA INIZIO],10))*($B53<=ElencoCorsi[ORA FINE]),ElencoCorsi[UNIVOCO]),ElencoCorsi[UNIVOCO],0),2),0)","v":0},{"$f":"IFERROR(INDEX(ElencoCorsi[],MATCH(SUMPRODUCT((ElencoCorsi[GIORNO]=ProgrammaDelCorso[[#Headers],[MERCOLEDÌ]])*(ROUNDDOWN($B53,10)>=ROUNDDOWN(ElencoCorsi[ORA INIZIO],10))*($B53<=ElencoCorsi[ORA FINE]),ElencoCorsi[UNIVOCO]),ElencoCorsi[UNIVOCO],0),2),0)","v":0},{"$f":"IFERROR(INDEX(ElencoCorsi[],MATCH(SUMPRODUCT((ElencoCorsi[GIORNO]=ProgrammaDelCorso[[#Headers],[GIOVEDÌ]])*(ROUNDDOWN($B53,10)>=ROUNDDOWN(ElencoCorsi[ORA INIZIO],10))*($B53<=ElencoCorsi[ORA FINE]),ElencoCorsi[UNIVOCO]),ElencoCorsi[UNIVOCO],0),2),0)","v":0},{"$f":"IFERROR(INDEX(ElencoCorsi[],MATCH(SUMPRODUCT((ElencoCorsi[GIORNO]=ProgrammaDelCorso[[#Headers],[VENERDÌ]])*(ROUNDDOWN($B53,10)>=ROUNDDOWN(ElencoCorsi[ORA INIZIO],10))*($B53<=ElencoCorsi[ORA FINE]),ElencoCorsi[UNIVOCO]),ElencoCorsi[UNIVOCO],0),2),0)","v":0},{"$f":"IFERROR(INDEX(ElencoCorsi[],MATCH(SUMPRODUCT((ElencoCorsi[GIORNO]=ProgrammaDelCorso[[#Headers],[SABATO]])*(ROUNDDOWN($B53,10)>=ROUNDDOWN(ElencoCorsi[ORA INIZIO],10))*($B53<=ElencoCorsi[ORA FINE]),ElencoCorsi[UNIVOCO]),ElencoCorsi[UNIVOCO],0),2),0)","v":0}]
[null,"20:30:00",{"$f":"IFERROR(INDEX(ElencoCorsi[],MATCH(SUMPRODUCT((ElencoCorsi[GIORNO]=ProgrammaDelCorso[[#Headers],[DOMENICA]])*(ROUNDDOWN($B54,10)>=ROUNDDOWN(ElencoCorsi[ORA INIZIO],10))*($B54<=ElencoCorsi[ORA FINE]),ElencoCorsi[UNIVOCO]),ElencoCorsi[UNIVOCO],0),2),0)","v":0},{"$f":"IFERROR(INDEX(ElencoCorsi[],MATCH(SUMPRODUCT((ElencoCorsi[GIORNO]=ProgrammaDelCorso[[#Headers],[LUNEDÌ]])*(ROUNDDOWN($B54,10)>=ROUNDDOWN(ElencoCorsi[ORA INIZIO],10))*($B54<=ElencoCorsi[ORA FINE]),ElencoCorsi[UNIVOCO]),ElencoCorsi[UNIVOCO],0),2),0)","v":0},{"$f":"IFERROR(INDEX(ElencoCorsi[],MATCH(SUMPRODUCT((ElencoCorsi[GIORNO]=ProgrammaDelCorso[[#Headers],[MARTEDÌ]])*(ROUNDDOWN($B54,10)>=ROUNDDOWN(ElencoCorsi[ORA INIZIO],10))*($B54<=ElencoCorsi[ORA FINE]),ElencoCorsi[UNIVOCO]),ElencoCorsi[UNIVOCO],0),2),0)","v":0},{"$f":"IFERROR(INDEX(ElencoCorsi[],MATCH(SUMPRODUCT((ElencoCorsi[GIORNO]=ProgrammaDelCorso[[#Headers],[MERCOLEDÌ]])*(ROUNDDOWN($B54,10)>=ROUNDDOWN(ElencoCorsi[ORA INIZIO],10))*($B54<=ElencoCorsi[ORA FINE]),ElencoCorsi[UNIVOCO]),ElencoCorsi[UNIVOCO],0),2),0)","v":0},{"$f":"IFERROR(INDEX(ElencoCorsi[],MATCH(SUMPRODUCT((ElencoCorsi[GIORNO]=ProgrammaDelCorso[[#Headers],[GIOVEDÌ]])*(ROUNDDOWN($B54,10)>=ROUNDDOWN(ElencoCorsi[ORA INIZIO],10))*($B54<=ElencoCorsi[ORA FINE]),ElencoCorsi[UNIVOCO]),ElencoCorsi[UNIVOCO],0),2),0)","v":0},{"$f":"IFERROR(INDEX(ElencoCorsi[],MATCH(SUMPRODUCT((ElencoCorsi[GIORNO]=ProgrammaDelCorso[[#Headers],[VENERDÌ]])*(ROUNDDOWN($B54,10)>=ROUNDDOWN(ElencoCorsi[ORA INIZIO],10))*($B54<=ElencoCorsi[ORA FINE]),ElencoCorsi[UNIVOCO]),ElencoCorsi[UNIVOCO],0),2),0)","v":0},{"$f":"IFERROR(INDEX(ElencoCorsi[],MATCH(SUMPRODUCT((ElencoCorsi[GIORNO]=ProgrammaDelCorso[[#Headers],[SABATO]])*(ROUNDDOWN($B54,10)>=ROUNDDOWN(ElencoCorsi[ORA INIZIO],10))*($B54<=ElencoCorsi[ORA FINE]),ElencoCorsi[UNIVOCO]),ElencoCorsi[UNIVOCO],0),2),0)","v":0}]
[null,"20:45:00",{"$f":"IFERROR(INDEX(ElencoCorsi[],MATCH(SUMPRODUCT((ElencoCorsi[GIORNO]=ProgrammaDelCorso[[#Headers],[DOMENICA]])*(ROUNDDOWN($B55,10)>=ROUNDDOWN(ElencoCorsi[ORA INIZIO],10))*($B55<=ElencoCorsi[ORA FINE]),ElencoCorsi[UNIVOCO]),ElencoCorsi[UNIVOCO],0),2),0)","v":0},{"$f":"IFERROR(INDEX(ElencoCorsi[],MATCH(SUMPRODUCT((ElencoCorsi[GIORNO]=ProgrammaDelCorso[[#Headers],[LUNEDÌ]])*(ROUNDDOWN($B55,10)>=ROUNDDOWN(ElencoCorsi[ORA INIZIO],10))*($B55<=ElencoCorsi[ORA FINE]),ElencoCorsi[UNIVOCO]),ElencoCorsi[UNIVOCO],0),2),0)","v":0},{"$f":"IFERROR(INDEX(ElencoCorsi[],MATCH(SUMPRODUCT((ElencoCorsi[GIORNO]=ProgrammaDelCorso[[#Headers],[MARTEDÌ]])*(ROUNDDOWN($B55,10)>=ROUNDDOWN(ElencoCorsi[ORA INIZIO],10))*($B55<=ElencoCorsi[ORA FINE]),ElencoCorsi[UNIVOCO]),ElencoCorsi[UNIVOCO],0),2),0)","v":0},{"$f":"IFERROR(INDEX(ElencoCorsi[],MATCH(SUMPRODUCT((ElencoCorsi[GIORNO]=ProgrammaDelCorso[[#Headers],[MERCOLEDÌ]])*(ROUNDDOWN($B55,10)>=ROUNDDOWN(ElencoCorsi[ORA INIZIO],10))*($B55<=ElencoCorsi[ORA FINE]),ElencoCorsi[UNIVOCO]),ElencoCorsi[UNIVOCO],0),2),0)","v":0},{"$f":"IFERROR(INDEX(ElencoCorsi[],MATCH(SUMPRODUCT((ElencoCorsi[GIORNO]=ProgrammaDelCorso[[#Headers],[GIOVEDÌ]])*(ROUNDDOWN($B55,10)>=ROUNDDOWN(ElencoCorsi[ORA INIZIO],10))*($B55<=ElencoCorsi[ORA FINE]),ElencoCorsi[UNIVOCO]),ElencoCorsi[UNIVOCO],0),2),0)","v":0},{"$f":"IFERROR(INDEX(ElencoCorsi[],MATCH(SUMPRODUCT((ElencoCorsi[GIORNO]=ProgrammaDelCorso[[#Headers],[VENERDÌ]])*(ROUNDDOWN($B55,10)>=ROUNDDOWN(ElencoCorsi[ORA INIZIO],10))*($B55<=ElencoCorsi[ORA FINE]),ElencoCorsi[UNIVOCO]),ElencoCorsi[UNIVOCO],0),2),0)","v":0},{"$f":"IFERROR(INDEX(ElencoCorsi[],MATCH(SUMPRODUCT((ElencoCorsi[GIORNO]=ProgrammaDelCorso[[#Headers],[SABATO]])*(ROUNDDOWN($B55,10)>=ROUNDDOWN(ElencoCorsi[ORA INIZIO],10))*($B55<=ElencoCorsi[ORA FINE]),ElencoCorsi[UNIVOCO]),ElencoCorsi[UNIVOCO],0),2),0)","v":0}]
[null,"21:00:00",{"$f":"IFERROR(INDEX(ElencoCorsi[],MATCH(SUMPRODUCT((ElencoCorsi[GIORNO]=ProgrammaDelCorso[[#Headers],[DOMENICA]])*(ROUNDDOWN($B56,10)>=ROUNDDOWN(ElencoCorsi[ORA INIZIO],10))*($B56<=ElencoCorsi[ORA FINE]),ElencoCorsi[UNIVOCO]),ElencoCorsi[UNIVOCO],0),2),0)","v":0},{"$f":"IFERROR(INDEX(ElencoCorsi[],MATCH(SUMPRODUCT((ElencoCorsi[GIORNO]=ProgrammaDelCorso[[#Headers],[LUNEDÌ]])*(ROUNDDOWN($B56,10)>=ROUNDDOWN(ElencoCorsi[ORA INIZIO],10))*($B56<=ElencoCorsi[ORA FINE]),ElencoCorsi[UNIVOCO]),ElencoCorsi[UNIVOCO],0),2),0)","v":0},{"$f":"IFERROR(INDEX(ElencoCorsi[],MATCH(SUMPRODUCT((ElencoCorsi[GIORNO]=ProgrammaDelCorso[[#Headers],[MARTEDÌ]])*(ROUNDDOWN($B56,10)>=ROUNDDOWN(ElencoCorsi[ORA INIZIO],10))*($B56<=ElencoCorsi[ORA FINE]),ElencoCorsi[UNIVOCO]),ElencoCorsi[UNIVOCO],0),2),0)","v":0},{"$f":"IFERROR(INDEX(ElencoCorsi[],MATCH(SUMPRODUCT((ElencoCorsi[GIORNO]=ProgrammaDelCorso[[#Headers],[MERCOLEDÌ]])*(ROUNDDOWN($B56,10)>=ROUNDDOWN(ElencoCorsi[ORA INIZIO],10))*($B56<=ElencoCorsi[ORA FINE]),ElencoCorsi[UNIVOCO]),ElencoCorsi[UNIVOCO],0),2),0)","v":0},{"$f":"IFERROR(INDEX(ElencoCorsi[],MATCH(SUMPRODUCT((ElencoCorsi[GIORNO]=ProgrammaDelCorso[[#Headers],[GIOVEDÌ]])*(ROUNDDOWN($B56,10)>=ROUNDDOWN(ElencoCorsi[ORA INIZIO],10))*($B56<=ElencoCorsi[ORA FINE]),ElencoCorsi[UNIVOCO]),ElencoCorsi[UNIVOCO],0),2),0)","v":0},{"$f":"IFERROR(INDEX(ElencoCorsi[],MATCH(SUMPRODUCT((ElencoCorsi[GIORNO]=ProgrammaDelCorso[[#Headers],[VENERDÌ]])*(ROUNDDOWN($B56,10)>=ROUNDDOWN(ElencoCorsi[ORA INIZIO],10))*($B56<=ElencoCorsi[ORA FINE]),ElencoCorsi[UNIVOCO]),ElencoCorsi[UNIVOCO],0),2),0)","v":0},{"$f":"IFERROR(INDEX(ElencoCorsi[],MATCH(SUMPRODUCT((ElencoCorsi[GIORNO]=ProgrammaDelCorso[[#Headers],[SABATO]])*(ROUNDDOWN($B56,10)>=ROUNDDOWN(ElencoCorsi[ORA INIZIO],10))*($B56<=ElencoCorsi[ORA FINE]),ElencoCorsi[UNIVOCO]),ElencoCorsi[UNIVOCO],0),2),0)","v":0}]

{"sheet":"Elenco corsi","index":1,"n_rows":10,"n_cols":8,"rows_kept":10,"merged":[[0,1,0,5],[0,6,0,7]]}
[null,"ELENCO CORSI",{"$nulls":4},"Programma del corso"]
[null,"CORSO","ID","GIORNO","LUOGO","ORA INIZIO","ORA FINE","UNIVOCO"]
[null,"Scrittura tecnica","ST-121","LUNEDÌ","Edificio A","13:00:00","14:00:00",{"$f":"ROW()-ROW(ElencoCorsi[[#Headers],[UNIVOCO]])","v":1}]
[null,"Scrittura tecnica","ST-121","MERCOLEDÌ","Edificio A","13:00:00","14:00:00",{"$f":"ROW()-ROW(ElencoCorsi[[#Headers],[UNIVOCO]])","v":2}]
[null,"Arte oratoria","AO-111","LUNEDÌ","Edificio B","16:00:00","17:00:00",{"$f":"ROW()-ROW(ElencoCorsi[[#Headers],[UNIVOCO]])","v":3}]
[null,"Salute e benessere","SAL-295","MARTEDÌ","Edificio B","11:00:00","12:00:00",{"$f":"ROW()-ROW(ElencoCorsi[[#Headers],[UNIVOCO]])","v":4}]
[null,"Salute e benessere","SAL-295","GIOVEDÌ","Edificio B","11:00:00","12:00:00",{"$f":"ROW()-ROW(ElencoCorsi[[#Headers],[UNIVOCO]])","v":5}]
[null,"Algebra","MAT-113","LUNEDÌ","Edificio C","08:10:00","09:15:00",{"$f":"ROW()-ROW(ElencoCorsi[[#Headers],[UNIVOCO]])","v":6}]
[null,"Algebra","MAT-113","MERCOLEDÌ","Edificio C","08:10:00","09:15:00",{"$f":"ROW()-ROW(ElencoCorsi[[#Headers],[UNIVOCO]])","v":7}]
[null,"Algebra","MAT-113","VENERDÌ","Edificio C","08:10:00","09:15:00",{"$f":"ROW()-ROW(ElencoCorsi[[#Headers],[UNIVOCO]])","v":8}]